Workbook

Sheet Resumo do Orçamento
A1: LOGO DA EMPRESA
D5: Obra | E5: Bancos | F5: B.D.I. | I5: Encargos Sociais
D6: Espaço Multiuso - Tipo 02 | E6: SINAPI - 08/2024 - Sergipe ORSE - 06/2024 - Sergipe | F6: 23,54% | I6: Não Desonerado: Horista: 112,54% Mensalista: 70,11%
K8: Desconto
K9: 0 | L9: Inserir o desconto aqui
A10: Planilha Orçamentária Resumida
A11: Item | D11: Descrição | J11: Total | K11: Peso (%)
A12: 1 | D12: SERVIÇOS PRELIMINARES | J12: =SUM('Orçamento Sintético'!I13:I21) -> 27272.07 | K12: =J12/$I$17 -> 0.09636723795
A13: 2 | D13: ESPAÇO MULTIEVENTOS | J13: =SUM('Orçamento Sintético'!I24:I58) -> 224664.33 | K13: =J13/$I$17 -> 0.7938627669
A14: 3 | D14: INSTALAÇÕES ELÉTRICA (GERAL) | J14: =SUM('Orçamento Sintético'!I61:I85) -> 27095.59 | K14: =J14/$I$17 -> 0.09574363695
A15: 4 | D15: DIVERSOS | J15: =SUM('Orçamento Sintético'!I87:I88) -> 3969.49 | K15: =J15/$I$17 -> 0.01402639357
G17: Total Geral | I17: =TRUNC(283001.47*(1-$K$9),2) -> 283001.47

Sheet Orçamento Sintético
A1: LOGO DA EMPRESA
D4: Obra | E4: Bancos | G4: B.D.I. | I4: Encargos Sociais
D5: Espaço Multiuso - Tipo 02 | E5: SINAPI - 08/2024 - Sergipe ORSE - 06/2024 - Sergipe | G5: 23,54% | I5: Não Desonerado: Horista: 112,54% Mensalista: 70,11%
I7: Desconto
I8: ='Resumo do Orçamento'!K9 -> 0 | J8: Inserir o desconto na aba Resumo, não aqui!
A9: Orçamento Sintético
A10: Item | B10: Código | C10: Banco | D10: Descrição | E10: Und | F10: Quant. | G10: Valor Unit | H10: Valor Unit com BDI | I10: Total
A11: 1 | D11: SERVIÇOS PRELIMINARES
A12: 1.1 | D12: MOBILIZAÇÃO/DESMOBILIZAÇÃO
A13: 1.1.1 | B13: 00000003 | C13: Próprio | D13: Mobilização de equipamentos e pessoal (pequenas obras) | E13: un | F13: 1 | G13: 1309.8 | H13: =TRUNC(G13*(1+$G$5)*(1-$I$8),2) -> 1618.12 | I13: =TRUNC(F13*H13,2) -> 1618.12
A14: 1.1.2 | B14: 00000004 | C14: Próprio | D14: Desmobilização de equipamentos e pessoal (pequenas obras) | E14: un | F14: 1 | G14: 746.34 | H14: =TRUNC(G14*(1+$G$5)*(1-$I$8),2) -> 922.02 | I14: =TRUNC(F14*H14,2) -> 922.02
A15: 1.2 | D15: CANTEIRO DE OBRA
A16: 1.2.1 | B16: 51 | C16: ORSE | D16: Placa de obra em chapa aço galvanizado, instalada - Rev 02_01/2022 | E16: m² | F16: 6.4 | G16: 375.59 | H16: =TRUNC(G16*(1+$G$5)*(1-$I$8),2) -> 464 | I16: =TRUNC(F16*H16,2) -> 2969.6
A17: 1.2.2 | B17: 10528 | C17: ORSE | D17: Aluguel mensal de área | E17: mês | F17: 4 | G17: 604.79 | H17: =TRUNC(G17*(1+$G$5)*(1-$I$8),2) -> 747.15 | I17: =TRUNC(F17*H17,2) -> 2988.6
A18: 1.3 | D18: ADMINISTRAÇÃO LOCAL
A19: 1.3.1 | B19: CODEVASF 122 | C19: Próprio | D19: Administração local de pequenas obras | E19: und | F19: 1 | G19: =TRUNC(4*3399.12,2) -> 13596.48 | H19: =TRUNC(G19*(1+$G$5)*(1-$I$8),2) -> 16797.09 | I19: =TRUNC(F19*H19,2) -> 16797.09
A20: 1.4 | D20: PROJETO EXECUTIVO
A21: 1.4.1 | B21: CODEVASF 331 | C21: Próprio | D21: Projeto Executivo (Multiuso 02) | E21: und | F21: 1 | G21: 1600 | H21: =TRUNC(G21*(1+$G$5)*(1-$I$8),2) -> 1976.64 | I21: =TRUNC(F21*H21,2) -> 1976.64
A22: 2 | D22: ESPAÇO MULTIEVENTOS
A23: 2.1 | D23: SERVIÇOS PRELIMINARES
A24: 2.1.1 | B24: 98524 | C24: SINAPI | D24: LIMPEZA MANUAL DE VEGETAÇÃO EM TERRENO COM ENXADA. AF_03/2024 | E24: m² | F24: 967.95 | G24: 4.35 | H24: =TRUNC(G24*(1+$G$5)*(1-$I$8),2) -> 5.37 | I24: =TRUNC(F24*H24,2) -> 5197.89
A25: 2.2 | D25: MOVIMENTAÇÃO DE TERRA
A26: 2.2.1 | B26: 00006079 | C26: SINAPI | D26: ARGILA, ARGILA VERMELHA OU ARGILA ARENOSA (RETIRADA NA JAZIDA, SEM TRANSPORTE) | E26: m³ | F26: 106.47 | G26: 37.35 | H26: =TRUNC(G26*(1+$G$5)*(1-$I$8),2) -> 46.14 | I26: =TRUNC(F26*H26,2) -> 4912.52
A27: 2.2.2 | B27: 3426 | C27: ORSE | D27: Escavação e carga com escavadeira hidráulica de material de 1ª categoria ou de jazida | E27: m³ | F27: 96.8 | G27: 0.99 | H27: =TRUNC(G27*(1+$G$5)*(1-$I$8),2) -> 1.22 | I27: =TRUNC(F27*H27,2) -> 118.09
A28: 2.2.3 | B28: 4986 | C28: ORSE | D28: Carga mecânica de material de 1ª categoria | E28: m³ | F28: 106.47 | G28: 0.77 | H28: =TRUNC(G28*(1+$G$5)*(1-$I$8),2) -> 0.95 | I28: =TRUNC(F28*H28,2) -> 101.14
A29: 2.2.4 | B29: 97914 | C29: SINAPI | D29: TRANSPORTE COM CAMINHÃO BASCULANTE DE 6 M³, EM VIA URBANA PAVIMENTADA, DMT ATÉ 30 KM (UNIDADE: M3XKM). AF_07/2020 | E29: M3XKM | F29: 1916.54 | G29: 2.79 | H29: =TRUNC(G29*(1+$G$5)*(1-$I$8),2) -> 3.44 | I29: =TRUNC(F29*H29,2) -> 6592.89
A30: 2.2.5 | B30: 71 | C30: ORSE | D30: Aterro manual de áreas, sem aquisição de material, com espalhamento e compactação | E30: m³ | F30: 107.35 | G30: 52.32 | H30: =TRUNC(G30*(1+$G$5)*(1-$I$8),2) -> 64.63 | I30: =TRUNC(F30*H30,2) -> 6938.03
A31: 2.3 | D31: INFRAESTRUTURAS (MURETA E ARQUIBANCADA)
A32: 2.3.1 | B32: 4177 | C32: ORSE | D32: Locação de construção de edificação acima de 1000 m2, inclusive execução de gabarito de madeira | E32: m² | F32: 134.4 | G32: 5.47 | H32: =TRUNC(G32*(1+$G$5)*(1-$I$8),2) -> 6.75 | I32: =TRUNC(F32*H32,2) -> 907.2
A33: 2.3.2 | B33: 93358 | C33: SINAPI | D33: ESCAVAÇÃO MANUAL DE VALA COM PROFUNDIDADE MENOR OU IGUAL A 1,30 M. AF_02/2021 | E33: m³ | F33: 29.63 | G33: 80.78 | H33: 99.79 | I33: 2956.77
A34: 2.3.3 | B34: 94962 | C34: SINAPI | D34: CONCRETO MAGRO PARA LASTRO, TRAÇO 1:4,5:4,5 (EM MASSA SECA DE CIMENTO/ AREIA MÉDIA/ BRITA 1) - PREPARO MECÂNICO COM BETONEIRA 400 L. AF_05/2021 | E34: m³ | F34: 0.68 | G34: 406.18 | H34: 501.79 | I34: 341.21
A35: 2.3.4 | B35: 97086 | C35: SINAPI | D35: FABRICAÇÃO, MONTAGEM E DESMONTAGEM DE FORMA PARA RADIER, PISO DE CONCRETO OU LAJE SOBRE SOLO, EM MADEIRA SERRADA, 4 UTILIZAÇÕES. AF_09/2021 | E35: m² | F35: 233.75 | G35: 121.46 | H35: 150.05 | I35: 35074.18
A36: 2.3.5 | B36: 96543 | C36: SINAPI | D36: ARMAÇÃO DE BLOCO UTILIZANDO AÇO CA-60 DE 5 MM - MONTAGEM. AF_01/2024 | E36: KG | F36: 135.24 | G36: 20.68 | H36: 25.54 | I36: 3454.02
A37: 2.3.6 | B37: 96544 | C37: SINAPI | D37: ARMAÇÃO DE BLOCO UTILIZANDO AÇO CA-50 DE 6,3 MM - MONTAGEM. AF_01/2024 | E37: KG | F37: 155.82 | G37: 19.03 | H37: 23.5 | I37: 3661.77
A38: 2.3.7 | B38: 96546 | C38: SINAPI | D38: ARMAÇÃO DE BLOCO UTILIZANDO AÇO CA-50 DE 10 MM - MONTAGEM. AF_01/2024 | E38: KG | F38: 29.62 | G38: 15.39 | H38: 19.01 | I38: 563.07
A39: 2.3.8 | B39: 9399 | C39: ORSE | D39: Concreto simples fabricado na obra, fck=25 mpa, lançado e adensado | E39: m³ | F39: 21.25 | G39: 626.77 | H39: 774.31 | I39: 16454.08
A40: 2.3.9 | B40: 93382 | C40: SINAPI | D40: REATERRO MANUAL DE VALAS, COM COMPACTADOR DE SOLOS DE PERCUSSÃO. AF_08/2023 | E40: m³ | F40: 8.77 | G40: 25.09 | H40: 30.99 | I40: 271.78
A41: 2.4 | D41: ALVENARIA (MURETA E ARQUIBANCADA)
A42: 2.4.1 | B42: 103330 | C42: SINAPI | D42: ALVENARIA DE VEDAÇÃO DE BLOCOS CERÂMICOS FURADOS NA HORIZONTAL DE 11,5X19X19 CM (ESPESSURA 11,5 CM) E ARGAMASSA DE ASSENTAMENTO COM PREPARO EM BETONEIRA. AF_12/2021 | E42: m² | F42: 63.48 | G42: 69.54 | H42: =TRUNC(G42*(1+$G$5)*(1-$I$8),2) -> 85.9 | I42: =TRUNC(F42*H42,2) -> 5452.93
A43: 2.4.2 | B43: 89799 | C43: SINAPI | D43: TUBO PVC, SERIE NORMAL, ESGOTO PREDIAL, DN 75 MM, FORNECIDO E INSTALADO EM PRUMADA DE ESGOTO SANITÁRIO OU VENTILAÇÃO. AF_08/2022 | E43: M | F43: 1.35 | G43: 18.61 | H43: =TRUNC(G43*(1+$G$5)*(1-$I$8),2) -> 22.99 | I43: =TRUNC(F43*H43,2) -> 31.03
A44: 2.4.3 | B44: 87894 | C44: SINAPI | D44: CHAPISCO APLICADO EM ALVENARIA (SEM PRESENÇA DE VÃOS) E ESTRUTURAS DE CONCRETO DE FACHADA, COM COLHER DE PEDREIRO. ARGAMASSA TRAÇO 1:3 COM PREPARO EM BETONEIRA 400L. AF_10/2022 | E44: m² | F44: 142.83 | G44: 6.56 | H44: =TRUNC(G44*(1+$G$5)*(1-$I$8),2) -> 8.1 | I44: =TRUNC(F44*H44,2) -> 1156.92
A45: 2.4.4 | B45: 87529 | C45: SINAPI | D45: MASSA ÚNICA, EM ARGAMASSA TRAÇO 1:2:8, PREPARO MECÂNICO, APLICADA MANUALMENTE EM PAREDES INTERNAS DE AMBIENTES COM ÁREA ENTRE 5M² E 10M², E = 17,5MM, COM TALISCAS. AF_03/2024 | E45: m² | F45: 142.83 | G45: 35.45 | H45: =TRUNC(G45*(1+$G$5)*(1-$I$8),2) -> 43.79 | I45: =TRUNC(F45*H45,2) -> 6254.52
A46: 2.5 | D46: PISO
A47: 2.5.1 | B47: 96622 | C47: SINAPI | D47: LASTRO COM MATERIAL GRANULAR, APLICADO EM PISOS OU LAJES SOBRE SOLO, ESPESSURA DE *5 CM*. AF_01/2024 | E47: m³ | F47: 32.4 | G47: 232.84 | H47: =TRUNC(G47*(1+$G$5)*(1-$I$8),2) -> 287.65 | I47: =TRUNC(F47*H47,2) -> 9319.86
A48: 2.5.2 | B48: 94994 | C48: SINAPI | D48: EXECUÇÃO DE PASSEIO (CALÇADA) OU PISO DE CONCRETO COM CONCRETO MOLDADO IN LOCO, FEITO EM OBRA, ACABAMENTO CONVENCIONAL, ESPESSURA 8 CM, ARMADO. AF_08/2022 | E48: m² | F48: 648.06 | G48: 92.7 | H48: =TRUNC(G48*(1+$G$5)*(1-$I$8),2) -> 114.52 | I48: =TRUNC(F48*H48,2) -> 74215.83
A49: 2.5.3 | B49: 3641 | C49: ORSE | D49: Acabamento de superfície de piso de concreto com polimento mecânico com acabadora simples - Rev 02 | E49: m² | F49: 648.06 | G49: 3.93 | H49: =TRUNC(G49*(1+$G$5)*(1-$I$8),2) -> 4.85 | I49: =TRUNC(F49*H49,2) -> 3143.09
A50: 2.6 | D50: CALÇADA
A51: 2.6.1 | B51: 4555 | C51: ORSE | D51: Meio-fio pré moldado de concreto simples (0,12 x 0,30 x 1,00m), rejuntado comargamassa de cimento e areia no traço 1:3 | E51: m | F51: 126.38 | G51: 44.35 | H51: =TRUNC(G51*(1+$G$5)*(1-$I$8),2) -> 54.78 | I51: =TRUNC(F51*H51,2) -> 6923.09
A52: 2.6.2 | B52: 94991 | C52: SINAPI | D52: EXECUÇÃO DE PASSEIO (CALÇADA) OU PISO DE CONCRETO COM CONCRETO MOLDADO IN LOCO, USINADO C20, ACABAMENTO CONVENCIONAL, NÃO ARMADO. AF_08/2022 | E52: m³ | F52: 15.56 | G52: 693.61 | H52: =TRUNC(G52*(1+$G$5)*(1-$I$8),2) -> 856.88 | I52: =TRUNC(F52*H52,2) -> 13333.05
A53: 2.7 | D53: EQUIPAMENTOS
A54: 2.7.1 | B54: CODEVASF 234 | C54: Próprio | D54: BICICLETÁRIO EM TUBO DE AÇO GALVANIZADO DN 50mm | E54: UND | F54: 10 | G54: 591.76 | H54: =TRUNC(G54*(1+$G$5)*(1-$I$8),2) -> 731.06 | I54: =TRUNC(F54*H54,2) -> 7310.6
A55: 2.7.2 | B55: 9222 | C55: ORSE | D55: Guarda-corpo em tubos de aço galvanizado (altura = 0,90), com barras verticais a cada 2,00m (2"), barra horizontal intermediária (2") e barra horizontal superior (2") | E55: m | F55: 20.68 | G55: 283.68 | H55: =TRUNC(G55*(1+$G$5)*(1-$I$8),2) -> 350.45 | I55: =TRUNC(F55*H55,2) -> 7247.3
A56: 2.8 | D56: PINTURA
A57: 2.8.1 | B57: 88489 | C57: SINAPI | D57: PINTURA LÁTEX ACRÍLICA PREMIUM, APLICAÇÃO MANUAL EM PAREDES, DUAS DEMÃOS. AF_04/2023 | E57: m² | F57: 138.82 | G57: 13.12 | H57: =TRUNC(G57*(1+$G$5)*(1-$I$8),2) -> 16.2 | I57: =TRUNC(F57*H57,2) -> 2248.88
A58: 2.8.2 | B58: 100758 | C58: SINAPI | D58: PINTURA COM TINTA ALQUÍDICA DE ACABAMENTO (ESMALTE SINTÉTICO ACETINADO) APLICADA A ROLO OU PINCEL SOBRE SUPERFÍCIES METÁLICAS (EXCETO PERFIL) EXECUTADO EM OBRA (02 DEMÃOS). AF_01/2020 | E58: m² | F58: 8.1 | G58: 48.23 | H58: =TRUNC(G58*(1+$G$5)*(1-$I$8),2) -> 59.58 | I58: =TRUNC(F58*H58,2) -> 482.59
A59: 3 | D59: INSTALAÇÕES ELÉTRICA (GERAL)
A60: 3.1 | D60: ENTRADA DE SERVIÇO MONOFÁSICA 220V
A61: 3.1.1 | B61: 101496 | C61: SINAPI | D61: ENTRADA DE ENERGIA ELÉTRICA, AÉREA, MONOFÁSICA, COM CAIXA DE EMBUTIR, CABO DE 35 MM2 E DISJUNTOR DIN 50A (NÃO INCLUSO O POSTE DE CONCRETO). AF_07/2020_PS | E61: UN | F61: 1 | G61: 1612.67 | H61: =TRUNC(G61*(1+$G$5)*(1-$I$8),2) -> 1992.29 | I61: =TRUNC(F61*H61,2) -> 1992.29
A62: 3.1.2 | B62: 83446 | C62: SINAPI | D62: CAIXA DE PASSAGEM 30X30X40 COM TAMPA E DRENO BRITA | E62: UN | F62: 1 | G62: 212.59 | H62: =TRUNC(G62*(1+$G$5)*(1-$I$8),2) -> 262.63 | I62: =TRUNC(F62*H62,2) -> 262.63
A63: 3.2 | D63: INSTALAÇÃO DA ILUMINAÇÃO DO ESPAÇO MULTIEVENTOS
A64: 3.2.1 | B64: 331 | C64: ORSE | D64: Poste de concreto duplo T (DT) 9/200 - fornecimento e assentamento | E64: un | F64: 4 | G64: 874.5 | H64: =TRUNC(G64*(1+$G$5)*(1-$I$8),2) -> 1080.35 | I64: =TRUNC(F64*H64,2) -> 4321.4
A65: 3.2.2 | B65: 91863 | C65: SINAPI | D65: ELETRODUTO RÍGIDO ROSCÁVEL, PVC, DN 25 MM (3/4"), PARA CIRCUITOS TERMINAIS, INSTALADO EM FORRO - FORNECIMENTO E INSTALAÇÃO. AF_03/2023 | E65: M | F65: 27 | G65: 9.82 | H65: 12.13 | I65: 327.51
A66: 3.2.3 | B66: 91879 | C66: SINAPI | D66: LUVA PARA ELETRODUTO, PVC, ROSCÁVEL, DN 25 MM (3/4"), PARA CIRCUITOS TERMINAIS, INSTALADA EM LAJE - FORNECIMENTO E INSTALAÇÃO. AF_03/2023 | E66: UN | F66: 14 | G66: 5.79 | H66: 7.15 | I66: 100.1
A67: 3.2.4 | B67: 91890 | C67: SINAPI | D67: CURVA 90 GRAUS PARA ELETRODUTO, PVC, ROSCÁVEL, DN 25 MM (3/4"), PARA CIRCUITOS TERMINAIS, INSTALADA EM FORRO - FORNECIMENTO E INSTALAÇÃO. AF_03/2023 | E67: UN | F67: 7 | G67: 11.31 | H67: 13.97 | I67: 97.79
A68: 3.2.5 | B68: 91892 | C68: SINAPI | D68: CURVA 180 GRAUS PARA ELETRODUTO, PVC, ROSCÁVEL, DN 25 MM (3/4"), PARA CIRCUITOS TERMINAIS, INSTALADA EM FORRO - FORNECIMENTO E INSTALAÇÃO. AF_03/2023 | E68: UN | F68: 4 | G68: 12.39 | H68: 15.3 | I68: 61.2
A69: 3.2.6 | B69: 96985 | C69: SINAPI | D69: HASTE DE ATERRAMENTO, DIÂMETRO 5/8", COM 3 METROS - FORNECIMENTO E INSTALAÇÃO. AF_08/2023 | E69: UN | F69: 4 | G69: 88.94 | H69: 109.87 | I69: 439.48
A70: 3.2.7 | B70: 83446 | C70: SINAPI | D70: CAIXA DE PASSAGEM 30X30X40 COM TAMPA E DRENO BRITA | E70: UN | F70: 6 | G70: 212.59 | H70: 262.63 | I70: 1575.78
A71: 3.2.8 | B71: CODEVASF 235 | C71: Próprio | D71: ENTRADA DE ENERGIA ELÉTRICA AÉREA MONOFÁSICA 40A COM POSTE DE CONCRETO, INCLUSIVE CABEAMENTO, CAIXA DE PROTEÇÃO PARA MEDIDOR E ATERRAMENTO. | E71: und | F71: 1 | G71: 1565.53 | H71: 1934.05 | I71: 1934.05
A72: 3.2.9 | B72: 8349 | C72: ORSE | D72: Refletor para lampada vapor de sódio 400w, Olivo ou similar, inclusive lâmpada e reator | E72: un | F72: 12 | G72: 259.84 | H72: 321 | I72: 3852
A73: 3.2.10 | B73: 4232 | C73: ORSE | D73: Lâmpada vapor metálico 400w, fornecimento. Rev 01_06/2024 | E73: un | F73: 12 | G73: 33.99 | H73: 41.99 | I73: 503.88
A74: 3.2.11 | B74: 103782 | C74: SINAPI | D74: LUMINÁRIA TIPO PLAFON CIRCULAR, DE SOBREPOR, COM LED DE 12/13 W - FORNECIMENTO E INSTALAÇÃO. AF_03/2022 | E74: UN | F74: 12 | G74: 26.76 | H74: 33.05 | I74: 396.6
A75: 3.2.12 | B75: 642 | C75: ORSE | D75: Ponto de luz em teto ou parede, com eletroduto pvc rígido embutido Ø 3/4" | E75: un | F75: 12 | G75: 278.37 | H75: 343.89 | I75: 4126.68
A76: 3.2.13 | B76: 91859 | C76: SINAPI | D76: ELETRODUTO FLEXÍVEL LISO, PEAD, DN 32 MM (1"), PARA CIRCUITOS TERMINAIS, INSTALADO EM PAREDE - FORNECIMENTO E INSTALAÇÃO. AF_03/2023 | E76: M | F76: 80 | G76: 9.78 | H76: 12.08 | I76: 966.4
A77: 3.2.14 | B77: 91871 | C77: SINAPI | D77: ELETRODUTO RÍGIDO ROSCÁVEL, PVC, DN 25 MM (3/4"), PARA CIRCUITOS TERMINAIS, INSTALADO EM PAREDE - FORNECIMENTO E INSTALAÇÃO. AF_03/2023 | E77: M | F77: 80 | G77: 12.59 | H77: 15.55 | I77: 1244
A78: 3.2.15 | B78: 91931 | C78: SINAPI | D78: CABO DE COBRE FLEXÍVEL ISOLADO, 6 MM², ANTI-CHAMA 0,6/1,0 KV, PARA CIRCUITOS TERMINAIS - FORNECIMENTO E INSTALAÇÃO. AF_03/2023 | E78: M | F78: 200 | G78: 9.87 | H78: 12.19 | I78: 2438
A79: 3.2.16 | B79: 91926 | C79: SINAPI | D79: CABO DE COBRE FLEXÍVEL ISOLADO, 2,5 MM², ANTI-CHAMA 450/750 V, PARA CIRCUITOS TERMINAIS - FORNECIMENTO E INSTALAÇÃO. AF_03/2023 | E79: M | F79: 250 | G79: 4.2 | H79: 5.18 | I79: 1295
A80: 3.2.17 | B80: 101878 | C80: SINAPI | D80: QUADRO DE DISTRIBUIÇÃO DE ENERGIA EM CHAPA DE AÇO GALVANIZADO, DE SOBREPOR, COM BARRAMENTO TRIFÁSICO, PARA 18 DISJUNTORES DIN 100A - FORNECIMENTO E INSTALAÇÃO. AF_10/2020 | E80: UN | F80: 1 | G80: 492.63 | H80: 608.59 | I80: 608.59
A81: 3.2.18 | B81: 93672 | C81: SINAPI | D81: DISJUNTOR TRIPOLAR TIPO DIN, CORRENTE NOMINAL DE 40A - FORNECIMENTO E INSTALAÇÃO. AF_10/2020 | E81: UN | F81: 1 | G81: 78.11 | H81: 96.49 | I81: 96.49
A82: 3.2.19 | B82: 93654 | C82: SINAPI | D82: DISJUNTOR MONOPOLAR TIPO DIN, CORRENTE NOMINAL DE 16A - FORNECIMENTO E INSTALAÇÃO. AF_10/2020 | E82: UN | F82: 4 | G82: 10.89 | H82: 13.45 | I82: 53.8
A83: 3.2.20 | B83: 93660 | C83: SINAPI | D83: DISJUNTOR BIPOLAR TIPO DIN, CORRENTE NOMINAL DE 10A - FORNECIMENTO E INSTALAÇÃO. AF_10/2020 | E83: UN | F83: 4 | G83: 49.42 | H83: 61.05 | I83: 244.2
A84: 3.2.21 | B84: 93653 | C84: SINAPI | D84: DISJUNTOR MONOPOLAR TIPO DIN, CORRENTE NOMINAL DE 10A - FORNECIMENTO E INSTALAÇÃO. AF_10/2020 | E84: UN | F84: 1 | G84: 10.3 | H84: 12.72 | I84: 12.72
A85: 3.2.22 | B85: 92001 | C85: SINAPI | D85: TOMADA BAIXA DE EMBUTIR (1 MÓDULO), 2P+T 20 A, INCLUINDO SUPORTE E PLACA - FORNECIMENTO E INSTALAÇÃO. AF_03/2023 | E85: UN | F85: 4 | G85: 29.35 | H85: 36.25 | I85: 145
A86: 4 | D86: DIVERSOS
A87: 4.1 | B87: CODEVASF 240 | C87: Próprio | D87: LOGOMARCA EM ALTO RELEVO | E87: und | F87: 3 | G87: 375.11 | H87: =TRUNC(G87*(1+$G$5)*(1-$I$8),2) -> 463.41 | I87: =TRUNC(F87*H87,2) -> 1390.23
A88: 4.2 | B88: 5 | C88: ORSE | D88: Placa de inauguração de obra em alumínio 0,50 x 0,70 m | E88: un | F88: 1 | G88: 2087.8 | H88: =TRUNC(G88*(1+$G$5)*(1-$I$8),2) -> 2579.26 | I88: =TRUNC(F88*H88,2) -> 2579.26

Sheet Cronograma
B1: Ministério da Integração e do Desenvolvimento Regional - MIDR
B2: Companhia de Desenvolvimento dos Vales do São Francisco e do Parnaíba
B3: Gerência Regional de Infraestrutura
A5: ='Resumo do Orçamento'!D6 -> Espaço Multiuso - Tipo 02
A7: CRONOGRAMA FÍSICO E FINANCEIRO
A9: ITEM | B9: DESCRIÇÃO DOS SERVIÇOS | C9: R$ | E9: PRAZO (DIAS)
D10: 30 | E10: 60 | F10: 90 | G10: 120 | H10: 150 | I10: 180
A12: 1 | B12: ='Resumo do Orçamento'!D12 -> SERVIÇOS PRELIMINARES | C12: ='Resumo do Orçamento'!J12 -> 27272.07 | D12: 0.4 | E12: 0.12 | F12: 0.12 | G12: 0.12 | H12: 0.12 | I12: 0.12 | J12: =SUM(D12:I12) -> 1
D13: =ROUND(D12*$C$12,2) -> 10908.83 | E13: 3272.65 | F13: 3272.65 | G13: 3272.65 | H13: 3272.65 | I13: 3272.65
A14: 2 | B14: ='Resumo do Orçamento'!D13 -> ESPAÇO MULTIEVENTOS | C14: ='Resumo do Orçamento'!J13 -> 224664.33 | D14: 0 | E14: 0 | F14: 0.3 | G14: 0.5 | H14: 0.2 | I14: 0 | J14: =SUM(D14:I14) -> 1
D15: =ROUND(D14*$C$14,2) -> 0 | E15: 0 | F15: 67399.3 | G15: 112332.17 | H15: 44932.87 | I15: 0
A16: 3 | B16: ='Resumo do Orçamento'!D14 -> INSTALAÇÕES ELÉTRICA (GERAL) | C16: ='Resumo do Orçamento'!J14 -> 27095.59 | D16: 0 | E16: 0 | F16: 0 | G16: 0 | H16: 0.5 | I16: 0.5 | J16: =SUM(D16:I16) -> 1
D17: =ROUND(D16*$C$16,2) -> 0 | E17: 0 | F17: 0 | G17: 0 | H17: 13547.8 | I17: 13547.8
A18: 4 | B18: ='Resumo do Orçamento'!D15 -> DIVERSOS | C18: ='Resumo do Orçamento'!J15 -> 3969.49 | D18: 0 | E18: 0 | F18: 0 | G18: 0 | H18: 0.5 | I18: 0.5 | J18: =SUM(D18:I18) -> 1
D19: =ROUND(D18*$C$18,2) -> 0 | E19: 0 | F19: 0 | G19: 0 | H19: 1984.75 | I19: 1984.75
B22: Total Geral | C22: =C12+C14+C16+C18 -> 283001.48 | D22: =D13+D15+D17+D19 -> 10908.83 | E22: 3272.65 | F22: 70671.95 | G22: 115604.82 | H22: 63738.07 | I22: 18805.2
D24: =D22/$C$22 -> 0.03854690089 | E24: 0.0115640738 | F24: 0.249722899 | G24: 0.4084954609 | H24: 0.2252216844 | I24: 0.06644912246
B25: Total Geral Acumulado | D25: =D22+C25 -> 10908.83 | E25: 14181.48 | F25: 84853.43 | G25: 200458.25 | H25: 264196.32 | I25: 283001.52

Sheet BDI
B1: Ministério da Integração e do Desenvolvimento Regional - MIDR
B2: Companhia de Desenvolvimento dos Vales do São Francisco e do Parnaíba
B3: 4ª Gerência Regional de Infraestrutura
D5: Sem Desoneração
A7: DETALHAMENTO DO BDI
A9: ITEM | B9: DESCRIÇÕES DOS ITENS | D9: %
A12: 1 | B12: ADMINISTRAÇÃO CENTRAL ( AC ) | D12: 4
A14: 2 | B14: TRIBUTOS ( I ) | D14: =SUM(D15:D18) -> 6.65
A15: 2.1 | B15: ISS | D15: 3
A16: 2.2 | B16: PIS | D16: 0.65
A17: 2.3 | B17: Cofins | D17: 3
A18: 2.4 | B18: CPRB (Contribuição Previdenciária sobre a Receita Bruta) | D18: 0
A20: 3 | B20: TAXA DE RISCO ( R ) | D20: 1.27
A22: 4 | B22: SEGURO E GARANTIAS (S + G) | D22: 0.8
A24: 5 | B24: DESPESAS FINANCEIRAS ( F ) | D24: 1.23
A26: 6 | B26: LUCRO ( L ) | D26: 7.4
D27: =ROUND((((1+(D12+D20)/100)*(1+(D24/100))*(1+(D26/100)))/((1-(D14/100)))-1),4) -> 0.226
A29: BDI = | B29: (1+AC+R+S+G)*(1+DF)*(1+L) | C29: -1 ====================> | D29: =ROUND((((1+(D12+D20+D22)/100)*(1+(D24/100))*(1+(D26/100)))/((1-(D14/100)))-1),4) -> 0.2354
B30: (1-I)
A31: Lei n°7.983/13 - Estabelace regras e critérios para eleboração dp orçamento de referência de obras e serviços de engenharia, contratados e executados com recusros dos orçamentos da União; Acordão n°2622/2013 - Estabelece os parâmetros de referência para as taxas de BDI por tipo de obra; Lei n° 13.161/15 - Desoneração Fiscal

Sheet Encacrgos Sociais
B1: Ministério da Integração e do Desenvolvimento Regional - MIDR
B2: Companhia de Desenvovimento dos Vales do São Francisco e do Parnaíba
B3: 4ª Gerência Regional de Infraestrutura
A5: Detalhamento dos Encargos Sociais – Horista e Mensalista – Não Desonerado
A8: DISCRIMINAÇÃO | C8: HORISTA | D8: MENSALISTA
C9: % | D9: %
A10: A | B10: ENCARGOS SOCIAIS BÁSICOS
A11: A1 | B11: INSS | C11: 0.2 | D11: 0.2
A12: A2 | B12: SESI | C12: 0.015 | D12: 0.015
A13: A3 | B13: SENAI | C13: 0.01 | D13: 0.01
A14: A4 | B14: INCRA | C14: 0.002 | D14: 0.002
A15: A5 | B15: SEBRAE | C15: 0.006 | D15: 0.006
A16: A6 | B16: Salário Educação | C16: 0.025 | D16: 0.025
A17: A7 | B17: Seguro Contra Acidente de Trabalho | C17: 0.03 | D17: 0.03
A18: A8 | B18: FGTS | C18: 0.08 | D18: 0.08
A19: A9 | B19: SECONCI | C19: 0 | D19: 0
A20: SUBTOTAL DE “A”: | C20: 0.368 | D20: 36.8
A21: B | B21: ENCARGOS SOCIAIS QUE RECEBEM INCIDÊNCIA DE “A”
A22: B1 | B22: Repouso Semanal Remunerado | C22: 0.1787 | D22: 0
A23: B2 | B23: Feriados | C23: 0.0393 | D23: 0
A24: B3 | B24: Auxílio-Enfermidade | C24: 0.0085 | D24: 0.0064
A25: B4 | B25: 13º Salário | C25: 0.1098 | D25: 0.0833
A26: B5 | B26: Licença Paternidade | C26: 0.0006 | D26: 0.0004
A27: B6 | B27: Faltas Justificadas | C27: 0.0073 | D27: 0.0056
A28: B7 | B28: Dias de Chuva | C28: 0.0151 | D28: 0
A29: B8 | B29: Auxílio Acidente de Trabalho | C29: 0.001 | D29: 0.0008
A30: B9 | B30: Férias Gozadas | C30: 0.1137 | D30: 0.0864
A31: B10 | B31: Salário Maternidade | C31: 0.0004 | D31: 0.0003
A32: SUBTOTAL DE “B”: | C32: 0.4744 | D32: 0.1832
A33: C | B33: ENCARGOS SOCIAIS QUE NÃO RECEBEM INCIDÊNCIA DE “A”
A34: C1 | B34: Aviso Prévio Indenizado | C34: 0.0483 | D34: 0.0367
A35: C2 | B35: Aviso Prévio Trabalhado | C35: 0.0011 | D35: 0.0009
A36: C3 | B36: Férias Indenizadas | C36: 0.0235 | D36: 0.0179
A37: C4 | B37: Depósito Rescisão Sem Justa Causa | C37: 0.0271 | D37: 0.0206
A38: C5 | B38: Indenização Adicional | C38: 0.0041 | D38: 0.0031
A39: SUBTOTAL DE “C”: | C39: 0.1041 | D39: 0.0792
A40: D | B40: REINCIDÊNCIAS DE UM GRUPO SOBRE O OUTRO
A41: D1 | B41: Reincidência de “A” sobre “B” | C41: 0.1746 | D41: 0.0674
A42: D2 | B42: Reincidência de Grupo A sobre Aviso Prévio Trabalhado e Reincidência do FGTS sobre Aviso Prévio Indenizado | C42: 0.0043 | D42: 0.0033
A43: SUBTOTAL DE “D”: | C43: 0.1789 | D43: 0.0707
A44: TOTAIS DE ENCARGOS SOCIAIS: | C44: 1.1254 | D44: 0.7011

Sheet Curva ABC de Serviços
C1: Obra | D1: Bancos | E1: B.D.I. | H1: Encargos Sociais
C2: Espaço Multiuso - Tipo 02 | D2: SINAPI - 08/2024 - Sergipe ORSE - 06/2024 - Sergipe | E2: 23,54% | H2: Não Desonerado: Horista: 112,54% Mensalista: 70,11%
A3: Curva ABC de Serviços
A4: Código | B4: Banco | C4: Descrição | D4: Tipo | E4: Und | F4: Quant. | G4: Valor Unit | H4: Total | I4: Peso (%) | J4: Peso Acumulado (%)
A5: 94994 | B5: SINAPI | C5: EXECUÇÃO DE PASSEIO (CALÇADA) OU PISO DE CONCRETO COM CONCRETO MOLDADO IN LOCO, FEITO EM OBRA, ACABAMENTO CONVENCIONAL, ESPESSURA 8 CM, ARMADO. AF_08/2022 | D5: PISO - PISOS | E5: m² | F5: 648,06 | G5: =VLOOKUP(A5,'Orçamento Sintético'!$B$13:$H$88,7,FALSE) -> 114.52 | H5: =TRUNC(F5*G5,2) -> 74215.83 | I5: =H5/$H$64 -> 0.2622453777 | J5: =I5 -> 0.2622453777
A6: 97086 | B6: SINAPI | C6: FABRICAÇÃO, MONTAGEM E DESMONTAGEM DE FORMA PARA RADIER, PISO DE CONCRETO OU LAJE SOBRE SOLO, EM MADEIRA SERRADA, 4 UTILIZAÇÕES. AF_09/2021 | D6: FUES - FUNDAÇÕES E ESTRUTURAS | E6: m² | F6: 233,75 | G6: =VLOOKUP(A6,'Orçamento Sintético'!$B$13:$H$88,7,FALSE) -> 150.05 | H6: 35074.18 | I6: 0.1239363837 | J6: =I6+J5 -> 0.3861817613
A7: CODEVASF 122 | B7: Próprio | C7: Administração local de pequenas obras | D7: CANT - CANTEIRO DE OBRAS | E7: und | F7: 1 | G7: =VLOOKUP(A7,'Orçamento Sintético'!$B$13:$H$88,7,FALSE) -> 16797.09 | H7: 16797.09 | I7: 0.05935336451 | J7: 0.4455351258
A8: 9399 | B8: ORSE | C8: Concreto simples fabricado na obra, fck=25 mpa, lançado e adensado | D8: Concreto Simples | E8: m³ | F8: 21,25 | G8: =VLOOKUP(A8,'Orçamento Sintético'!$B$13:$H$88,7,FALSE) -> 774.31 | H8: 16454.08 | I8: 0.05814132138 | J8: 0.5036764472
A9: 94991 | B9: SINAPI | C9: EXECUÇÃO DE PASSEIO (CALÇADA) OU PISO DE CONCRETO COM CONCRETO MOLDADO IN LOCO, USINADO C20, ACABAMENTO CONVENCIONAL, NÃO ARMADO. AF_08/2022 | D9: PISO - PISOS | E9: m³ | F9: 15,56 | G9: =VLOOKUP(A9,'Orçamento Sintético'!$B$13:$H$88,7,FALSE) -> 856.88 | H9: 13333.05 | I9: 0.0471130045 | J9: 0.5507894517
A10: 96622 | B10: SINAPI | C10: LASTRO COM MATERIAL GRANULAR, APLICADO EM PISOS OU LAJES SOBRE SOLO, ESPESSURA DE *5 CM*. AF_01/2024 | D10: FUES - FUNDAÇÕES E ESTRUTURAS | E10: m³ | F10: 32,4 | G10: =VLOOKUP(A10,'Orçamento Sintético'!$B$13:$H$88,7,FALSE) -> 287.65 | H10: 9319.86 | I10: 0.03293219527 | J10: 0.583721647
A11: CODEVASF 234 | B11: Próprio | C11: BICICLETÁRIO EM TUBO DE AÇO GALVANIZADO DN 50mm | D11: SEDI - SERVIÇOS DIVERSOS | E11: UND | F11: 10,0 | G11: =VLOOKUP(A11,'Orçamento Sintético'!$B$13:$H$88,7,FALSE) -> 731.06 | H11: 7310.6 | I11: 0.02583237374 | J11: 0.6095540207
A12: 9222 | B12: ORSE | C12: Guarda-corpo em tubos de aço galvanizado (altura = 0,90), com barras verticais a cada 2,00m (2"), barra horizontal intermediária (2") e barra horizontal superior (2") | D12: Esquadrias de Ferro | E12: m | F12: 20,68 | G12: =VLOOKUP(A12,'Orçamento Sintético'!$B$13:$H$88,7,FALSE) -> 350.45 | H12: 7247.3 | I12: 0.0256087 | J12: 0.6351627207
A13: 71 | B13: ORSE | C13: Aterro manual de áreas, sem aquisição de material, com espalhamento e compactação | D13: Aterros / Reaterros / Compactações | E13: m³ | F13: 107,35 | G13: =VLOOKUP(A13,'Orçamento Sintético'!$B$13:$H$88,7,FALSE) -> 64.63 | H13: 6938.03 | I13: 0.02451587886 | J13: 0.6596785996
A14: 4555 | B14: ORSE | C14: Meio-fio pré moldado de concreto simples (0,12 x 0,30 x 1,00m), rejuntado comargamassa de cimento e areia no traço 1:3 | D14: Meios-Fios e Guias | E14: m | F14: 126,38 | G14: =VLOOKUP(A14,'Orçamento Sintético'!$B$13:$H$88,7,FALSE) -> 54.78 | H14: 6923.09 | I14: 0.02446308761 | J14: 0.6841416872
A15: 97914 | B15: SINAPI | C15: TRANSPORTE COM CAMINHÃO BASCULANTE DE 6 M³, EM VIA URBANA PAVIMENTADA, DMT ATÉ 30 KM (UNIDADE: M3XKM). AF_07/2020 | D15: TRAN - TRANSPORTES, CARGAS E DESCARGAS | E15: M3XKM | F15: 1.916,54 | G15: =VLOOKUP(A15,'Orçamento Sintético'!$B$13:$H$88,7,FALSE) -> 3.44 | H15: 6592.89 | I15: 0.02329630926 | J15: 0.7074379964
A16: 87529 | B16: SINAPI | C16: MASSA ÚNICA, EM ARGAMASSA TRAÇO 1:2:8, PREPARO MECÂNICO, APLICADA MANUALMENTE EM PAREDES INTERNAS DE AMBIENTES COM ÁREA ENTRE 5M² E 10M², E = 17,5MM, COM TALISCAS. AF_03/2024 | D16: REVE - REVESTIMENTO E TRATAMENTO DE SUPERFÍCIES | E16: m² | F16: 142,83 | G16: =VLOOKUP(A16,'Orçamento Sintético'!$B$13:$H$88,7,FALSE) -> 43.79 | H16: 6254.52 | I16: 0.02210066181 | J16: 0.7295386582
A17: 103330 | B17: SINAPI | C17: ALVENARIA DE VEDAÇÃO DE BLOCOS CERÂMICOS FURADOS NA HORIZONTAL DE 11,5X19X19 CM (ESPESSURA 11,5 CM) E ARGAMASSA DE ASSENTAMENTO COM PREPARO EM BETONEIRA. AF_12/2021 | D17: PARE - PAREDES/PAINEIS | E17: m² | F17: 63,48 | G17: =VLOOKUP(A17,'Orçamento Sintético'!$B$13:$H$88,7,FALSE) -> 85.9 | H17: 5452.93 | I17: 0.01926820312 | J17: 0.7488068614
A18: 98524 | B18: SINAPI | C18: LIMPEZA MANUAL DE VEGETAÇÃO EM TERRENO COM ENXADA. AF_03/2024 | D18: URBA - URBANIZAÇÃO | E18: m² | F18: 967,95 | G18: =VLOOKUP(A18,'Orçamento Sintético'!$B$13:$H$88,7,FALSE) -> 5.37 | H18: 5197.89 | I18: 0.01836700642 | J18: 0.7671738678
A19: 00006079 | B19: SINAPI | C19: ARGILA, ARGILA VERMELHA OU ARGILA ARENOSA (RETIRADA NA JAZIDA, SEM TRANSPORTE) | D19: Material | E19: m³ | F19: 106,47 | G19: =VLOOKUP(A19,'Orçamento Sintético'!$B$13:$H$88,7,FALSE) -> 46.14 | H19: 4912.52 | I19: 0.01735863714 | J19: 0.7845325049
A20: 331 | B20: ORSE | C20: Poste de concreto duplo T (DT) 9/200 - fornecimento e assentamento | D20: Entrada em Baixa Tensão | E20: un | F20: 4,0 | G20: =VLOOKUP(A20,'Orçamento Sintético'!$B$13:$H$88,7,FALSE) -> 1080.35 | H20: 4321.4 | I20: 0.01526988481 | J20: 0.7998023897
A21: 642 | B21: ORSE | C21: Ponto de luz em teto ou parede, com eletroduto pvc rígido embutido Ø 3/4" | D21: Pontos de Suprimento de Energia Convencionais | E21: un | F21: 12,0 | G21: =VLOOKUP(A21,'Orçamento Sintético'!$B$13:$H$88,7,FALSE) -> 343.89 | H21: 4126.68 | I21: 0.01458183187 | J21: 0.8143842216
A22: 8349 | B22: ORSE | C22: Refletor para lampada vapor de sódio 400w, Olivo ou similar, inclusive lâmpada e reator | D22: Luminárias Externas | E22: un | F22: 12,0 | G22: =VLOOKUP(A22,'Orçamento Sintético'!$B$13:$H$88,7,FALSE) -> 321 | H22: 3852 | I22: 0.01361123624 | J22: 0.8279954578
A23: 96544 | B23: SINAPI | C23: ARMAÇÃO DE BLOCO UTILIZANDO AÇO CA-50 DE 6,3 MM - MONTAGEM. AF_01/2024 | D23: FUES - FUNDAÇÕES E ESTRUTURAS | E23: KG | F23: 155,82 | G23: =VLOOKUP(A23,'Orçamento Sintético'!$B$13:$H$88,7,FALSE) -> 23.5 | H23: 3661.77 | I23: 0.01293904894 | J23: 0.8409345068
A24: 96543 | B24: SINAPI | C24: ARMAÇÃO DE BLOCO UTILIZANDO AÇO CA-60 DE 5 MM - MONTAGEM. AF_01/2024 | D24: FUES - FUNDAÇÕES E ESTRUTURAS | E24: KG | F24: 135,24 | G24: =VLOOKUP(A24,'Orçamento Sintético'!$B$13:$H$88,7,FALSE) -> 25.54 | H24: 3454.02 | I24: 0.01220495384 | J24: 0.8531394606
A25: 3641 | B25: ORSE | C25: Acabamento de superfície de piso de concreto com polimento mecânico com acabadora simples - Rev 02 | D25: Pavimentações Externas | E25: m² | F25: 648,06 | G25: =VLOOKUP(A25,'Orçamento Sintético'!$B$13:$H$88,7,FALSE) -> 4.85 | H25: 3143.09 | I25: 0.01110626701 | J25: 0.8642457276
A26: 10528 | B26: ORSE | C26: Aluguel mensal de área | D26: Serviços | E26: mês | F26: 4,0 | G26: =VLOOKUP(A26,'Orçamento Sintético'!$B$13:$H$88,7,FALSE) -> 747.15 | H26: 2988.6 | I26: 0.0105603688 | J26: 0.8748060964
A27: 51 | B27: ORSE | C27: Placa de obra em chapa aço galvanizado, instalada - Rev 02_01/2022 | D27: Mobilização / Instalações Provisórias / Desmobilização | E27: m² | F27: 6,4 | G27: =VLOOKUP(A27,'Orçamento Sintético'!$B$13:$H$88,7,FALSE) -> 464 | H27: 2969.6 | I27: 0.01049323134 | J27: 0.8852993278
A28: 93358 | B28: SINAPI | C28: ESCAVAÇÃO MANUAL DE VALA COM PROFUNDIDADE MENOR OU IGUAL A 1,30 M. AF_02/2021 | D28: MOVT - MOVIMENTO DE TERRA | E28: m³ | F28: 29,63 | G28: =VLOOKUP(A28,'Orçamento Sintético'!$B$13:$H$88,7,FALSE) -> 99.79 | H28: 2956.77 | I28: 0.01044789589 | J28: 0.8957472237
A29: 5 | B29: ORSE | C29: Placa de inauguração de obra em alumínio 0,50 x 0,70 m | D29: Serviços Iniciais de Obras Civis | E29: un | F29: 1,0 | G29: =VLOOKUP(A29,'Orçamento Sintético'!$B$13:$H$88,7,FALSE) -> 2579.26 | H29: 2579.26 | I29: 0.00911394527 | J29: 0.9048611689
A30: 91931 | B30: SINAPI | C30: CABO DE COBRE FLEXÍVEL ISOLADO, 6 MM², ANTI-CHAMA 0,6/1,0 KV, PARA CIRCUITOS TERMINAIS - FORNECIMENTO E INSTALAÇÃO. AF_03/2023 | D30: INEL - INSTALAÇÃO ELÉTRICA/ELETRIFICAÇÃO E ILUMINAÇÃO EXTERNA | E30: M | F30: 200,0 | G30: =VLOOKUP(A30,'Orçamento Sintético'!$B$13:$H$88,7,FALSE) -> 12.19 | H30: 2438 | I30: 0.008614795937 | J30: 0.9134759649
A31: 88489 | B31: SINAPI | C31: PINTURA LÁTEX ACRÍLICA PREMIUM, APLICAÇÃO MANUAL EM PAREDES, DUAS DEMÃOS. AF_04/2023 | D31: PINT - PINTURAS | E31: m² | F31: 138,82 | G31: =VLOOKUP(A31,'Orçamento Sintético'!$B$13:$H$88,7,FALSE) -> 16.2 | H31: 2248.88 | I31: 0.00794653088 | J31: 0.9214224957
A32: 101496 | B32: SINAPI | C32: ENTRADA DE ENERGIA ELÉTRICA, AÉREA, MONOFÁSICA, COM CAIXA DE EMBUTIR, CABO DE 35 MM2 E DISJUNTOR DIN 50A (NÃO INCLUSO O POSTE DE CONCRETO). AF_07/2020_PS | D32: INEL - INSTALAÇÃO ELÉTRICA/ELETRIFICAÇÃO E ILUMINAÇÃO EXTERNA | E32: UN | F32: 1,0 | G32: =VLOOKUP(A32,'Orçamento Sintético'!$B$13:$H$88,7,FALSE) -> 1992.29 | H32: 1992.29 | I32: 0.007039857177 | J32: 0.9284623529
A33: CODEVASF 331 | B33: Próprio | C33: Projeto Executivo (Multiuso 02) | D33: SERT - SERVIÇOS TÉCNICOS | E33: und | F33: 1,0 | G33: =VLOOKUP(A33,'Orçamento Sintético'!$B$13:$H$88,7,FALSE) -> 1976.64 | H33: 1976.64 | I33: 0.006984557113 | J33: 0.93544691
A34: CODEVASF 235 | B34: Próprio | C34: ENTRADA DE ENERGIA ELÉTRICA AÉREA MONOFÁSICA 40A COM POSTE DE CONCRETO, INCLUSIVE CABEAMENTO, CAIXA DE PROTEÇÃO PARA MEDIDOR E ATERRAMENTO. | D34: INEL - INSTALAÇÃO ELÉTRICA/ELETRIFICAÇÃO E ILUMINAÇÃO EXTERNA | E34: und | F34: 1,0 | G34: =VLOOKUP(A34,'Orçamento Sintético'!$B$13:$H$88,7,FALSE) -> 1934.05 | H34: 1934.05 | I34: 0.0068340632 | J34: 0.9422809732
A35: 83446 | B35: SINAPI | C35: CAIXA DE PASSAGEM 30X30X40 COM TAMPA E DRENO BRITA | D35: INEL - INSTALAÇÃO ELÉTRICA/ELETRIFICAÇÃO E ILUMINAÇÃO EXTERNA | E35: UN | F35: 7,0 | G35: =VLOOKUP(A35,'Orçamento Sintético'!$B$13:$H$88,7,FALSE) -> 262.63 | H35: 1838.41 | I35: 0.006496114437 | J35: 0.9487770877
A36: 00000003 | B36: Próprio | C36: Mobilização de equipamentos e pessoal (pequenas obras) | D36: CANT - CANTEIRO DE OBRAS | E36: un | F36: 1,0 | G36: =VLOOKUP(A36,'Orçamento Sintético'!$B$13:$H$88,7,FALSE) -> 1618.12 | H36: 1618.12 | I36: 0.005717708614 | J36: 0.9544947963
A37: CODEVASF 240 | B37: Próprio | C37: LOGOMARCA EM ALTO RELEVO | D37: ASTU - ASSENTAMENTO DE TUBOS E PECAS | E37: und | F37: 3,0 | G37: =VLOOKUP(A37,'Orçamento Sintético'!$B$13:$H$88,7,FALSE) -> 463.41 | H37: =TRUNC(F37*G37,2) -> 1390.23 | I37: =H37/$H$64 -> 0.004912447808 | J37: 0.9594072441
A38: 91926 | B38: SINAPI | C38: CABO DE COBRE FLEXÍVEL ISOLADO, 2,5 MM², ANTI-CHAMA 450/750 V, PARA CIRCUITOS TERMINAIS - FORNECIMENTO E INSTALAÇÃO. AF_03/2023 | D38: INEL - INSTALAÇÃO ELÉTRICA/ELETRIFICAÇÃO E ILUMINAÇÃO EXTERNA | E38: M | F38: 250,0 | G38: =VLOOKUP(A38,'Orçamento Sintético'!$B$13:$H$88,7,FALSE) -> 5.18 | H38: 1295 | I38: 0.004575947801 | J38: =I38+J37 -> 0.9639831919
A39: 91871 | B39: SINAPI | C39: ELETRODUTO RÍGIDO ROSCÁVEL, PVC, DN 25 MM (3/4"), PARA CIRCUITOS TERMINAIS, INSTALADO EM PAREDE - FORNECIMENTO E INSTALAÇÃO. AF_03/2023 | D39: INEL - INSTALAÇÃO ELÉTRICA/ELETRIFICAÇÃO E ILUMINAÇÃO EXTERNA | E39: M | F39: 80,0 | G39: =VLOOKUP(A39,'Orçamento Sintético'!$B$13:$H$88,7,FALSE) -> 15.55 | H39: 1244 | I39: 0.004395736729 | J39: 0.9683789286
A40: 87894 | B40: SINAPI | C40: CHAPISCO APLICADO EM ALVENARIA (SEM PRESENÇA DE VÃOS) E ESTRUTURAS DE CONCRETO DE FACHADA, COM COLHER DE PEDREIRO. ARGAMASSA TRAÇO 1:3 COM PREPARO EM BETONEIRA 400L. AF_10/2022 | D40: REVE - REVESTIMENTO E TRATAMENTO DE SUPERFÍCIES | E40: m² | F40: 142,83 | G40: =VLOOKUP(A40,'Orçamento Sintético'!$B$13:$H$88,7,FALSE) -> 8.1 | H40: 1156.92 | I40: 0.004088035158 | J40: 0.9724669638
A41: 91859 | B41: SINAPI | C41: ELETRODUTO FLEXÍVEL LISO, PEAD, DN 32 MM (1"), PARA CIRCUITOS TERMINAIS, INSTALADO EM PAREDE - FORNECIMENTO E INSTALAÇÃO. AF_03/2023 | D41: INEL - INSTALAÇÃO ELÉTRICA/ELETRIFICAÇÃO E ILUMINAÇÃO EXTERNA | E41: M | F41: 80,0 | G41: =VLOOKUP(A41,'Orçamento Sintético'!$B$13:$H$88,7,FALSE) -> 12.08 | H41: 966.4 | I41: 0.003414823131 | J41: 0.9758817869
A42: 00000004 | B42: Próprio | C42: Desmobilização de equipamentos e pessoal (pequenas obras) | D42: CANT - CANTEIRO DE OBRAS | E42: un | F42: 1,0 | G42: =VLOOKUP(A42,'Orçamento Sintético'!$B$13:$H$88,7,FALSE) -> 922.02 | H42: 922.02 | I42: 0.003258004163 | J42: 0.9791397911
A43: 4177 | B43: ORSE | C43: Locação de construção de edificação acima de 1000 m2, inclusive execução de gabarito de madeira | D43: Locação de Edificações | E43: m² | F43: 134,4 | G43: =VLOOKUP(A43,'Orçamento Sintético'!$B$13:$H$88,7,FALSE) -> 6.75 | H43: 907.2 | I43: 0.003205636946 | J43: 0.982345428
A44: 101878 | B44: SINAPI | C44: QUADRO DE DISTRIBUIÇÃO DE ENERGIA EM CHAPA DE AÇO GALVANIZADO, DE SOBREPOR, COM BARRAMENTO TRIFÁSICO, PARA 18 DISJUNTORES DIN 100A - FORNECIMENTO E INSTALAÇÃO. AF_10/2020 | D44: INEL - INSTALAÇÃO ELÉTRICA/ELETRIFICAÇÃO E ILUMINAÇÃO EXTERNA | E44: UN | F44: 1,0 | G44: =VLOOKUP(A44,'Orçamento Sintético'!$B$13:$H$88,7,FALSE) -> 608.59 | H44: 608.59 | I44: 0.002150483453 | J44: 0.9844959115
A45: 96546 | B45: SINAPI | C45: ARMAÇÃO DE BLOCO UTILIZANDO AÇO CA-50 DE 10 MM - MONTAGEM. AF_01/2024 | D45: FUES - FUNDAÇÕES E ESTRUTURAS | E45: KG | F45: 29,62 | G45: =VLOOKUP(A45,'Orçamento Sintético'!$B$13:$H$88,7,FALSE) -> 19.01 | H45: 563.07 | I45: 0.001989636238 | J45: 0.9864855477
A46: 4232 | B46: ORSE | C46: Lâmpada vapor metálico 400w, fornecimento. Rev 01_06/2024 | D46: Subestação Transformadora em Poste | E46: un | F46: 12,0 | G46: =VLOOKUP(A46,'Orçamento Sintético'!$B$13:$H$88,7,FALSE) -> 41.99 | H46: 503.88 | I46: 0.001780485388 | J46: 0.9882660331
A47: 100758 | B47: SINAPI | C47: PINTURA COM TINTA ALQUÍDICA DE ACABAMENTO (ESMALTE SINTÉTICO ACETINADO) APLICADA A ROLO OU PINCEL SOBRE SUPERFÍCIES METÁLICAS (EXCETO PERFIL) EXECUTADO EM OBRA (02 DEMÃOS). AF_01/2020 | D47: PINT - PINTURAS | E47: m² | F47: 8,1 | G47: =VLOOKUP(A47,'Orçamento Sintético'!$B$13:$H$88,7,FALSE) -> 59.58 | H47: 482.59 | I47: 0.0017052561 | J47: 0.9899712892
A48: 96985 | B48: SINAPI | C48: HASTE DE ATERRAMENTO, DIÂMETRO 5/8", COM 3 METROS - FORNECIMENTO E INSTALAÇÃO. AF_08/2023 | D48: INEL - INSTALAÇÃO ELÉTRICA/ELETRIFICAÇÃO E ILUMINAÇÃO EXTERNA | E48: UN | F48: 4,0 | G48: =VLOOKUP(A48,'Orçamento Sintético'!$B$13:$H$88,7,FALSE) -> 109.87 | H48: 439.48 | I48: 0.001552924741 | J48: 0.9915242139
A49: 103782 | B49: SINAPI | C49: LUMINÁRIA TIPO PLAFON CIRCULAR, DE SOBREPOR, COM LED DE 12/13 W - FORNECIMENTO E INSTALAÇÃO. AF_03/2022 | D49: INEL - INSTALAÇÃO ELÉTRICA/ELETRIFICAÇÃO E ILUMINAÇÃO EXTERNA | E49: UN | F49: 12,0 | G49: =VLOOKUP(A49,'Orçamento Sintético'!$B$13:$H$88,7,FALSE) -> 33.05 | H49: 396.6 | I49: 0.001401406099 | J49: 0.99292562
A50: 94962 | B50: SINAPI | C50: CONCRETO MAGRO PARA LASTRO, TRAÇO 1:4,5:4,5 (EM MASSA SECA DE CIMENTO/ AREIA MÉDIA/ BRITA 1) - PREPARO MECÂNICO COM BETONEIRA 400 L. AF_05/2021 | D50: FUES - FUNDAÇÕES E ESTRUTURAS | E50: m³ | F50: 0,68 | G50: =VLOOKUP(A50,'Orçamento Sintético'!$B$13:$H$88,7,FALSE) -> 501.79 | H50: 341.21 | I50: 0.001205682741 | J50: 0.9941313028
A51: 91863 | B51: SINAPI | C51: ELETRODUTO RÍGIDO ROSCÁVEL, PVC, DN 25 MM (3/4"), PARA CIRCUITOS TERMINAIS, INSTALADO EM FORRO - FORNECIMENTO E INSTALAÇÃO. AF_03/2023 | D51: INEL - INSTALAÇÃO ELÉTRICA/ELETRIFICAÇÃO E ILUMINAÇÃO EXTERNA | E51: M | F51: 27,0 | G51: =VLOOKUP(A51,'Orçamento Sintético'!$B$13:$H$88,7,FALSE) -> 12.13 | H51: 327.51 | I51: 0.0011572731 | J51: 0.9952885759
A52: 93382 | B52: SINAPI | C52: REATERRO MANUAL DE VALAS, COM COMPACTADOR DE SOLOS DE PERCUSSÃO. AF_08/2023 | D52: MOVT - MOVIMENTO DE TERRA | E52: m³ | F52: 8,77 | G52: =VLOOKUP(A52,'Orçamento Sintético'!$B$13:$H$88,7,FALSE) -> 30.99 | H52: 271.78 | I52: 0.0009603483346 | J52: 0.9962489242
A53: 93660 | B53: SINAPI | C53: DISJUNTOR BIPOLAR TIPO DIN, CORRENTE NOMINAL DE 10A - FORNECIMENTO E INSTALAÇÃO. AF_10/2020 | D53: INEL - INSTALAÇÃO ELÉTRICA/ELETRIFICAÇÃO E ILUMINAÇÃO EXTERNA | E53: UN | F53: 4,0 | G53: =VLOOKUP(A53,'Orçamento Sintético'!$B$13:$H$88,7,FALSE) -> 61.05 | H53: 244.2 | I53: 0.0008628930138 | J53: 0.9971118172
A54: 92001 | B54: SINAPI | C54: TOMADA BAIXA DE EMBUTIR (1 MÓDULO), 2P+T 20 A, INCLUINDO SUPORTE E PLACA - FORNECIMENTO E INSTALAÇÃO. AF_03/2023 | D54: INEL - INSTALAÇÃO ELÉTRICA/ELETRIFICAÇÃO E ILUMINAÇÃO EXTERNA | E54: UN | F54: 4,0 | G54: =VLOOKUP(A54,'Orçamento Sintético'!$B$13:$H$88,7,FALSE) -> 36.25 | H54: 145 | I54: 0.0005123648117 | J54: 0.997624182
A55: 3426 | B55: ORSE | C55: Escavação e carga com escavadeira hidráulica de material de 1ª categoria ou de jazida | D55: Conversão InfoWOrca | E55: m³ | F55: 96,8 | G55: =VLOOKUP(A55,'Orçamento Sintético'!$B$13:$H$88,7,FALSE) -> 1.22 | H55: 118.09 | I55: 0.0004172769697 | J55: 0.998041459
A56: 4986 | B56: ORSE | C56: Carga mecânica de material de 1ª categoria | D56: Carga de Material | E56: m³ | F56: 106,47 | G56: =VLOOKUP(A56,'Orçamento Sintético'!$B$13:$H$88,7,FALSE) -> 0.95 | H56: 101.14 | I56: 0.00035738329 | J56: 0.9983988423
A57: 91879 | B57: SINAPI | C57: LUVA PARA ELETRODUTO, PVC, ROSCÁVEL, DN 25 MM (3/4"), PARA CIRCUITOS TERMINAIS, INSTALADA EM LAJE - FORNECIMENTO E INSTALAÇÃO. AF_03/2023 | D57: INEL - INSTALAÇÃO ELÉTRICA/ELETRIFICAÇÃO E ILUMINAÇÃO EXTERNA | E57: UN | F57: 14,0 | G57: =VLOOKUP(A57,'Orçamento Sintético'!$B$13:$H$88,7,FALSE) -> 7.15 | H57: 100.1 | I57: 0.0003537083976 | J57: 0.9987525507
A58: 91890 | B58: SINAPI | C58: CURVA 90 GRAUS PARA ELETRODUTO, PVC, ROSCÁVEL, DN 25 MM (3/4"), PARA CIRCUITOS TERMINAIS, INSTALADA EM FORRO - FORNECIMENTO E INSTALAÇÃO. AF_03/2023 | D58: INEL - INSTALAÇÃO ELÉTRICA/ELETRIFICAÇÃO E ILUMINAÇÃO EXTERNA | E58: UN | F58: 7,0 | G58: =VLOOKUP(A58,'Orçamento Sintético'!$B$13:$H$88,7,FALSE) -> 13.97 | H58: 97.79 | I58: 0.0003455458961 | J58: 0.9990980966
A59: 93672 | B59: SINAPI | C59: DISJUNTOR TRIPOLAR TIPO DIN, CORRENTE NOMINAL DE 40A - FORNECIMENTO E INSTALAÇÃO. AF_10/2020 | D59: INEL - INSTALAÇÃO ELÉTRICA/ELETRIFICAÇÃO E ILUMINAÇÃO EXTERNA | E59: UN | F59: 1,0 | G59: =VLOOKUP(A59,'Orçamento Sintético'!$B$13:$H$88,7,FALSE) -> 96.49 | H59: 96.49 | I59: 0.0003409522805 | J59: 0.9994390489
A60: 91892 | B60: SINAPI | C60: CURVA 180 GRAUS PARA ELETRODUTO, PVC, ROSCÁVEL, DN 25 MM (3/4"), PARA CIRCUITOS TERMINAIS, INSTALADA EM FORRO - FORNECIMENTO E INSTALAÇÃO. AF_03/2023 | D60: INEL - INSTALAÇÃO ELÉTRICA/ELETRIFICAÇÃO E ILUMINAÇÃO EXTERNA | E60: UN | F60: 4,0 | G60: =VLOOKUP(A60,'Orçamento Sintético'!$B$13:$H$88,7,FALSE) -> 15.3 | H60: 61.2 | I60: 0.000216253286 | J60: 0.9996553022
A61: 93654 | B61: SINAPI | C61: DISJUNTOR MONOPOLAR TIPO DIN, CORRENTE NOMINAL DE 16A - FORNECIMENTO E INSTALAÇÃO. AF_10/2020 | D61: INEL - INSTALAÇÃO ELÉTRICA/ELETRIFICAÇÃO E ILUMINAÇÃO EXTERNA | E61: UN | F61: 4,0 | G61: =VLOOKUP(A61,'Orçamento Sintético'!$B$13:$H$88,7,FALSE) -> 13.45 | H61: 53.8 | I61: 0.0001901050129 | J61: 0.9998454072
A62: 89799 | B62: SINAPI | C62: TUBO PVC, SERIE NORMAL, ESGOTO PREDIAL, DN 75 MM, FORNECIDO E INSTALADO EM PRUMADA DE ESGOTO SANITÁRIO OU VENTILAÇÃO. AF_08/2022 | D62: INHI - INSTALAÇÕES HIDROS SANITÁRIAS | E62: M | F62: 1,35 | G62: =VLOOKUP(A62,'Orçamento Sintético'!$B$13:$H$88,7,FALSE) -> 22.99 | H62: 31.03 | I62: 0.0001096460697 | J62: 0.9999550532
A63: 93653 | B63: SINAPI | C63: DISJUNTOR MONOPOLAR TIPO DIN, CORRENTE NOMINAL DE 10A - FORNECIMENTO E INSTALAÇÃO. AF_10/2020 | D63: INEL - INSTALAÇÃO ELÉTRICA/ELETRIFICAÇÃO E ILUMINAÇÃO EXTERNA | E63: UN | F63: 1,0 | G63: =VLOOKUP(A63,'Orçamento Sintético'!$B$13:$H$88,7,FALSE) -> 12.72 | H63: 12.72 | I63: 4.494676141e-05 | J63: 1
H64: =SUM(H5:H63) -> 283001.48

Sheet CPUs
C1: Composições Analíticas com Preço Unitário | E1: Bancos | G1: B.D.I. | I1: Encargos Sociais
C2: Espaço Multiuso - Tipo 02 | E2: SINAPI - 08/2024 - Sergipe ORSE - 06/2024 - Sergipe | G2: 23,54% | I2: Não Desonerado: Horista: 112,54% Mensalista: 70,11%
A3: Composições Analíticas com Preço Unitário
A4: Composições Principais
A5: 1.1.1 | B5: Código | C5: Banco | D5: Descrição | E5: Tipo | G5: Und | H5: Quant. | I5: Valor Unit | J5: Total
A6: Composição | B6: 00000003 | C6: Próprio | D6: Mobilização de equipamentos e pessoal (pequenas obras) | E6: CANT - CANTEIRO DE OBRAS | G6: un | H6: 1 | I6: 1309.8 | J6: 1309.8
A7: Composição Auxiliar | B7: 73467 | C7: SINAPI | D7: CAMINHÃO TOCO, PBT 14.300 KG, CARGA ÚTIL MÁX. 9.710 KG, DIST. ENTRE EIXOS 3,56 M, POTÊNCIA 185 CV, INCLUSIVE CARROCERIA FIXA ABERTA DE MADEIRA P/ TRANSPORTE GERAL DE CARGA SECA, DIMEN. APROX. 2,50 X 6,50 X 0,50 M - CHP DIURNO. AF_06/2014 | E7: CHOR - CUSTOS HORÁRIOS DE MÁQUINAS E EQUIPAMENTOS | G7: CHP | H7: 5 | I7: 235.6 | J7: 1178
A8: Insumo | B8: 4415 | C8: ORSE | D8: Veículo leve - Volkswagen:GOL 1000 - automóvel até 100 hp | E8: Equipamento | G8: h | H8: 10 | I8: 13.18 | J8: 131.8
A12: 1.1.2 | B12: Código | C12: Banco | D12: Descrição | E12: Tipo | G12: Und | H12: Quant. | I12: Valor Unit | J12: Total
A13: Composição | B13: 00000004 | C13: Próprio | D13: Desmobilização de equipamentos e pessoal (pequenas obras) | E13: CANT - CANTEIRO DE OBRAS | G13: un | H13: 1 | I13: 746.34 | J13: 746.34
A14: Composição Auxiliar | B14: 73467 | C14: SINAPI | D14: CAMINHÃO TOCO, PBT 14.300 KG, CARGA ÚTIL MÁX. 9.710 KG, DIST. ENTRE EIXOS 3,56 M, POTÊNCIA 185 CV, INCLUSIVE CARROCERIA FIXA ABERTA DE MADEIRA P/ TRANSPORTE GERAL DE CARGA SECA, DIMEN. APROX. 2,50 X 6,50 X 0,50 M - CHP DIURNO. AF_06/2014 | E14: CHOR - CUSTOS HORÁRIOS DE MÁQUINAS E EQUIPAMENTOS | G14: CHP | H14: 3 | I14: 235.6 | J14: 706.8
A15: Insumo | B15: 4415 | C15: ORSE | D15: Veículo leve - Volkswagen:GOL 1000 - automóvel até 100 hp | E15: Equipamento | G15: h | H15: 3 | I15: 13.18 | J15: 39.54
A19: 1.2.1 | B19: Código | C19: Banco | D19: Descrição | E19: Tipo | G19: Und | H19: Quant. | I19: Valor Unit | J19: Total
A20: Composição | B20: 51 | C20: ORSE | D20: Placa de obra em chapa aço galvanizado, instalada - Rev 02_01/2022 | E20: Mobilização / Instalações Provisórias / Desmobilização | G20: m² | H20: 1 | I20: 375.59 | J20: 375.59
A21: Composição Auxiliar | B21: 10549 | C21: ORSE | D21: Encargos Complementares - Servente | E21: Provisórios | G21: h | H21: 2 | I21: 3.79 | J21: 7.58
A22: Composição Auxiliar | B22: 10551 | C22: ORSE | D22: Encargos Complementares - Carpinteiro | E22: Provisórios | G22: h | H22: 1 | I22: 3.69 | J22: 3.69
A23: Insumo | B23: 00001213/SINAPI | C23: ORSE | D23: Carpinteiro de formas (horista) | E23: Mão de Obra | G23: h | H23: 1 | I23: 19.13 | J23: 19.13
A24: Insumo | B24: 00004813/SINAPI | C24: ORSE | D24: Placa de obra (para construcao civil) em chapa galvanizada *n. 22*, adesivada, de *2,4 x 1,2* m (sem postes para fixacao) | E24: Material | G24: m² | H24: 1 | I24: 285 | J24: 285
A25: Insumo | B25: 00005075/SINAPI | C25: ORSE | D25: Prego de aco polido com cabeca 18 x 30 (2 3/4 x 10) | E25: Material | G25: kg | H25: 0.15 | I25: 15.82 | J25: 2.37
A26: Insumo | B26: 00006111/SINAPI | C26: ORSE | D26: Servente de obras (horista) | E26: Mão de Obra | G26: h | H26: 2 | I26: 13.65 | J26: 27.3
A27: Insumo | B27: 1569 | C27: ORSE | D27: Madeira mista serrada (barrote) 6 x 6cm - 0,0036 m3/m (angelim, louro) | E27: Material | G27: m | H27: 4 | I27: 6.75 | J27: 27
A28: Insumo | B28: 6995 | C28: ORSE | D28: Madeira mista serrada (sarrafo) 2,2 x 5,5cm - 0,00121 m³/m | E28: Material | G28: m | H28: 1 | I28: 3.52 | J28: 3.52
A32: 1.3.1 | B32: Código | C32: Banco | D32: Descrição | E32: Tipo | G32: Und | H32: Quant. | I32: Valor Unit | J32: Total
A33: Composição | B33: CODEVASF 122 | C33: Próprio | D33: Administração local de pequenas obras | E33: CANT - CANTEIRO DE OBRAS | G33: und | H33: 1 | I33: 3399.12 | J33: 3399.12
A34: Composição Auxiliar | B34: 90777 | C34: SINAPI | D34: ENGENHEIRO CIVIL DE OBRA JUNIOR COM ENCARGOS COMPLEMENTARES | E34: SEDI - SERVIÇOS DIVERSOS | G34: H | H34: 4 | I34: 120.03 | J34: 480.12
A35: Composição Auxiliar | B35: 90776 | C35: SINAPI | D35: ENCARREGADO GERAL COM ENCARGOS COMPLEMENTARES | E35: SEDI - SERVIÇOS DIVERSOS | G35: H | H35: 60 | I35: 31.92 | J35: 1915.2
A36: Insumo | B36: 5896 | C36: ORSE | D36: Veículo tipo sedan ou pick-up capacidade 0,6 ton | E36: Equipamento | G36: h | H36: 60 | I36: 8.33 | J36: 499.8
A37: Insumo | B37: 1044 | C37: ORSE | D37: Gasolina comum | E37: Material | G37: l | H37: 80 | I37: 6.3 | J37: 504
A41: 1.4.1 | B41: Código | C41: Banco | D41: Descrição | E41: Tipo | G41: Und | H41: Quant. | I41: Valor Unit | J41: Total
A42: Composição | B42: CODEVASF 331 | C42: Próprio | D42: Projeto Executivo (Multiuso 02) | E42: SERT - SERVIÇOS TÉCNICOS | G42: und | H42: 1 | I42: 1600 | J42: 1600
A43: Insumo | B43: 7320 | C43: ORSE | D43: Projeto de iluminação de áreas externas (praças, calçadões, orlas, complexo com várias edificações, etc) até 100.000m². | E43: Serviços | G43: m² | H43: 1600 | I43: 1 | J43: 1600
A47: 2.1.1 | B47: Código | C47: Banco | D47: Descrição | E47: Tipo | G47: Und | H47: Quant. | I47: Valor Unit | J47: Total
A48: Composição | B48: 98524 | C48: SINAPI | D48: LIMPEZA MANUAL DE VEGETAÇÃO EM TERRENO COM ENXADA. AF_03/2024 | E48: URBA - URBANIZAÇÃO | G48: m² | H48: 1 | I48: 4.35 | J48: 4.35
A49: Composição Auxiliar | B49: 88316 | C49: SINAPI | D49: SERVENTE COM ENCARGOS COMPLEMENTARES | E49: SEDI - SERVIÇOS DIVERSOS | G49: H | H49: 0.2132 | I49: 20.42 | J49: 4.35
A53: 2.2.2 | B53: Código | C53: Banco | D53: Descrição | E53: Tipo | G53: Und | H53: Quant. | I53: Valor Unit | J53: Total
A54: Composição | B54: 3426 | C54: ORSE | D54: Escavação e carga com escavadeira hidráulica de material de 1ª categoria ou de jazida | E54: Conversão InfoWOrca | G54: m³ | H54: 1 | I54: 0.99 | J54: 0.99
A55: Composição Auxiliar | B55: 10549 | C55: ORSE | D55: Encargos Complementares - Servente | E55: Provisórios | G55: h | H55: 0.0069 | I55: 3.79 | J55: 0.02
A56: Insumo | B56: 00006111/SINAPI | C56: ORSE | D56: Servente de obras (horista) | E56: Mão de Obra | G56: h | H56: 0.0069444 | I56: 13.65 | J56: 0.09
A57: Insumo | B57: 4680 | C57: ORSE | D57: Escavadeira hidraúlica sobre esteira, Caterpillar: 320DL - cap 600l p/ longo alcance | E57: Equipamento | G57: h | H57: 0.0069444 | I57: 110.65 | J57: 0.76
A58: Insumo | B58: 54 | C58: ORSE | D58: Encarregado de turma - SICRO | E58: Mão de Obra | G58: h | H58: 0.0069444 | I58: 18.28 | J58: 0.12
A62: 2.2.3 | B62: Código | C62: Banco | D62: Descrição | E62: Tipo | G62: Und | H62: Quant. | I62: Valor Unit | J62: Total
A63: Composição | B63: 4986 | C63: ORSE | D63: Carga mecânica de material de 1ª categoria | E63: Carga de Material | G63: m³ | H63: 1 | I63: 0.77 | J63: 0.77
A64: Composição Auxiliar | B64: 10549 | C64: ORSE | D64: Encargos Complementares - Servente | E64: Provisórios | G64: h | H64: 0.0094 | I64: 3.79 | J64: 0.03
A65: Insumo | B65: 00006111/SINAPI | C65: ORSE | D65: Servente de obras (horista) | E65: Mão de Obra | G65: h | H65: 0.0094 | I65: 13.65 | J65: 0.12
A66: Insumo | B66: 4244 | C66: ORSE | D66: Pa carregadeira sobre pneus Caterpillar - 924 G | E66: Equipamento | G66: h | H66: 0.0047 | I66: 132.74 | J66: 0.62
A70: 2.2.4 | B70: Código | C70: Banco | D70: Descrição | E70: Tipo | G70: Und | H70: Quant. | I70: Valor Unit | J70: Total
A71: Composição | B71: 97914 | C71: SINAPI | D71: TRANSPORTE COM CAMINHÃO BASCULANTE DE 6 M³, EM VIA URBANA PAVIMENTADA, DMT ATÉ 30 KM (UNIDADE: M3XKM). AF_07/2020 | E71: TRAN - TRANSPORTES, CARGAS E DESCARGAS | G71: M3XKM | H71: 1 | I71: 2.79 | J71: 2.79
A72: Composição Auxiliar | B72: 67826 | C72: SINAPI | D72: CAMINHÃO BASCULANTE 6 M3 TOCO, PESO BRUTO TOTAL 16.000 KG, CARGA ÚTIL MÁXIMA 11.130 KG, DISTÂNCIA ENTRE EIXOS 5,36 M, POTÊNCIA 185 CV, INCLUSIVE CAÇAMBA METÁLICA - CHP DIURNO. AF_06/2014 | E72: CHOR - CUSTOS HORÁRIOS DE MÁQUINAS E EQUIPAMENTOS | G72: CHP | H72: 0.0139 | I72: 175.1 | J72: 2.43
A73: Composição Auxiliar | B73: 67827 | C73: SINAPI | D73: CAMINHÃO BASCULANTE 6 M3 TOCO, PESO BRUTO TOTAL 16.000 KG, CARGA ÚTIL MÁXIMA 11.130 KG, DISTÂNCIA ENTRE EIXOS 5,36 M, POTÊNCIA 185 CV, INCLUSIVE CAÇAMBA METÁLICA - CHI DIURNO. AF_06/2014 | E73: CHOR - CUSTOS HORÁRIOS DE MÁQUINAS E EQUIPAMENTOS | G73: CHI | H73: 0.006 | I73: 61.29 | J73: 0.36
A77: 2.2.5 | B77: Código | C77: Banco | D77: Descrição | E77: Tipo | G77: Und | H77: Quant. | I77: Valor Unit | J77: Total
A78: Composição | B78: 71 | C78: ORSE | D78: Aterro manual de áreas, sem aquisição de material, com espalhamento e compactação | E78: Aterros / Reaterros / Compactações | G78: m³ | H78: 1 | I78: 52.32 | J78: 52.32
A79: Composição Auxiliar | B79: 10549 | C79: ORSE | D79: Encargos Complementares - Servente | E79: Provisórios | G79: h | H79: 3 | I79: 3.79 | J79: 11.37
A80: Insumo | B80: 00006111/SINAPI | C80: ORSE | D80: Servente de obras (horista) | E80: Mão de Obra | G80: h | H80: 3 | I80: 13.65 | J80: 40.95
A84: 2.3.1 | B84: Código | C84: Banco | D84: Descrição | E84: Tipo | G84: Und | H84: Quant. | I84: Valor Unit | J84: Total
A85: Composição | B85: 4177 | C85: ORSE | D85: Locação de construção de edificação acima de 1000 m2, inclusive execução de gabarito de madeira | E85: Locação de Edificações | G85: m² | H85: 1 | I85: 5.47 | J85: 5.47
A86: Composição Auxiliar | B86: 10549 | C86: ORSE | D86: Encargos Complementares - Servente | E86: Provisórios | G86: h | H86: 0.04 | I86: 3.79 | J86: 0.15
A87: Composição Auxiliar | B87: 10551 | C87: ORSE | D87: Encargos Complementares - Carpinteiro | E87: Provisórios | G87: h | H87: 0.04 | I87: 3.69 | J87: 0.14
A88: Insumo | B88: 00000345/SINAPI | C88: ORSE | D88: Arame galvanizado 18 bwg, d = 1,24mm (0,009 kg/m) | E88: Material | G88: kg | H88: 0.02 | I88: 27.1 | J88: 0.54
A89: Insumo | B89: 00001213/SINAPI | C89: ORSE | D89: Carpinteiro de formas (horista) | E89: Mão de Obra | G89: h | H89: 0.04 | I89: 19.13 | J89: 0.76
A90: Insumo | B90: 00005067/SINAPI | C90: ORSE | D90: Prego de aco polido com cabeca 16 x 24 (2 1/4 x 12) | E90: Material | G90: kg | H90: 0.012 | I90: 16.86 | J90: 0.2
A91: Insumo | B91: 00006111/SINAPI | C91: ORSE | D91: Servente de obras (horista) | E91: Mão de Obra | G91: h | H91: 0.04 | I91: 13.65 | J91: 0.54
A92: Insumo | B92: 00010567/SINAPI | C92: ORSE | D92: Tabua *2,5 x 23* cm em pinus, mista ou equivalente da regiao - bruta | E92: Material | G92: m | H92: 0.11 | I92: 12.58 | J92: 1.38
A93: Insumo | B93: 1569 | C93: ORSE | D93: Madeira mista serrada (barrote) 6 x 6cm - 0,0036 m3/m (angelim, louro) | E93: Material | G93: m | H93: 0.09 | I93: 6.75 | J93: 0.6
A94: Insumo | B94: 48 | C94: ORSE | D94: Auxiliar topografia - SICRO | E94: Mão de Obra | G94: h | H94: 0.02 | I94: 21.79 | J94: 0.43
A95: Insumo | B95: 70 | C95: ORSE | D95: Topógrafo - SICRO | E95: Mão de Obra | G95: h | H95: 0.02 | I95: 36.96 | J95: 0.73
A99: 2.3.2 | B99: Código | C99: Banco | D99: Descrição | E99: Tipo | G99: Und | H99: Quant. | I99: Valor Unit | J99: Total
A100: Composição | B100: 93358 | C100: SINAPI | D100: ESCAVAÇÃO MANUAL DE VALA COM PROFUNDIDADE MENOR OU IGUAL A 1,30 M. AF_02/2021 | E100: MOVT - MOVIMENTO DE TERRA | G100: m³ | H100: 1 | I100: 80.78 | J100: 80.78
A101: Composição Auxiliar | B101: 88316 | C101: SINAPI | D101: SERVENTE COM ENCARGOS COMPLEMENTARES | E101: SEDI - SERVIÇOS DIVERSOS | G101: H | H101: 3.956 | I101: 20.42 | J101: 80.78
A105: 2.3.3 | B105: Código | C105: Banco | D105: Descrição | E105: Tipo | G105: Und | H105: Quant. | I105: Valor Unit | J105: Total
A106: Composição | B106: 94962 | C106: SINAPI | D106: CONCRETO MAGRO PARA LASTRO, TRAÇO 1:4,5:4,5 (EM MASSA SECA DE CIMENTO/ AREIA MÉDIA/ BRITA 1) - PREPARO MECÂNICO COM BETONEIRA 400 L. AF_05/2021 | E106: FUES - FUNDAÇÕES E ESTRUTURAS | G106: m³ | H106: 1 | I106: 406.18 | J106: 406.18
A107: Composição Auxiliar | B107: 88316 | C107: SINAPI | D107: SERVENTE COM ENCARGOS COMPLEMENTARES | E107: SEDI - SERVIÇOS DIVERSOS | G107: H | H107: 2.3433 | I107: 20.42 | J107: 47.85
A108: Composição Auxiliar | B108: 88377 | C108: SINAPI | D108: OPERADOR DE BETONEIRA ESTACIONÁRIA/MISTURADOR COM ENCARGOS COMPLEMENTARES | E108: SEDI - SERVIÇOS DIVERSOS | G108: H | H108: 1.4811 | I108: 23.84 | J108: 35.3
A109: Composição Auxiliar | B109: 88830 | C109: SINAPI | D109: BETONEIRA CAPACIDADE NOMINAL DE 400 L, CAPACIDADE DE MISTURA 280 L, MOTOR ELÉTRICO TRIFÁSICO POTÊNCIA DE 2 CV, SEM CARREGADOR - CHP DIURNO. AF_10/2014 | E109: CHOR - CUSTOS HORÁRIOS DE MÁQUINAS E EQUIPAMENTOS | G109: CHP | H109: 0.7623 | I109: 1.88 | J109: 1.43
A110: Composição Auxiliar | B110: 88831 | C110: SINAPI | D110: BETONEIRA CAPACIDADE NOMINAL DE 400 L, CAPACIDADE DE MISTURA 280 L, MOTOR ELÉTRICO TRIFÁSICO POTÊNCIA DE 2 CV, SEM CARREGADOR - CHI DIURNO. AF_10/2014 | E110: CHOR - CUSTOS HORÁRIOS DE MÁQUINAS E EQUIPAMENTOS | G110: CHI | H110: 0.7188 | I110: 0.43 | J110: 0.3
A111: Insumo | B111: 00000370 | C111: SINAPI | D111: AREIA MEDIA - POSTO JAZIDA/FORNECEDOR (RETIRADO NA JAZIDA, SEM TRANSPORTE) | E111: Material | G111: m³ | H111: 0.8269 | I111: 110 | J111: 90.95
A112: Insumo | B112: 00001379 | C112: SINAPI | D112: CIMENTO PORTLAND COMPOSTO CP II-32 | E112: Material | G112: KG | H112: 212.0194 | I112: 0.76 | J112: 161.13
A113: Insumo | B113: 00004721 | C113: SINAPI | D113: PEDRA BRITADA N. 1 (9,5 a 19 MM) POSTO PEDREIRA/FORNECEDOR, SEM FRETE | E113: Material | G113: m³ | H113: 0.5782 | I113: 119.72 | J113: 69.22
A117: 2.3.4 | B117: Código | C117: Banco | D117: Descrição | E117: Tipo | G117: Und | H117: Quant. | I117: Valor Unit | J117: Total
A118: Composição | B118: 97086 | C118: SINAPI | D118: FABRICAÇÃO, MONTAGEM E DESMONTAGEM DE FORMA PARA RADIER, PISO DE CONCRETO OU LAJE SOBRE SOLO, EM MADEIRA SERRADA, 4 UTILIZAÇÕES. AF_09/2021 | E118: FUES - FUNDAÇÕES E ESTRUTURAS | G118: m² | H118: 1 | I118: 121.46 | J118: 121.46
A119: Composição Auxiliar | B119: 88239 | C119: SINAPI | D119: AJUDANTE DE CARPINTEIRO COM ENCARGOS COMPLEMENTARES | E119: SEDI - SERVIÇOS DIVERSOS | G119: H | H119: 1.444 | I119: 20.6 | J119: 29.74
A120: Composição Auxiliar | B120: 88262 | C120: SINAPI | D120: CARPINTEIRO DE FORMAS COM ENCARGOS COMPLEMENTARES | E120: SEDI - SERVIÇOS DIVERSOS | G120: H | H120: 2.357 | I120: 25.8 | J120: 60.81
A121: Insumo | B121: 00002692 | C121: SINAPI | D121: DESMOLDANTE PROTETOR PARA FORMAS DE MADEIRA, DE BASE OLEOSA EMULSIONADA EM AGUA | E121: Material | G121: L | H121: 0.017 | I121: 8.31 | J121: 0.14
A122: Insumo | B122: 00004491 | C122: SINAPI | D122: PONTALETE *7,5 X 7,5* CM EM PINUS, MISTA OU EQUIVALENTE DA REGIAO - BRUTA | E122: Material | G122: M | H122: 0.37 | I122: 10.99 | J122: 4.06
A123: Insumo | B123: 00004517 | C123: SINAPI | D123: SARRAFO *2,5 X 7,5* CM EM PINUS, MISTA OU EQUIVALENTE DA REGIAO - BRUTA | E123: Material | G123: M | H123: 0.44 | I123: 3.84 | J123: 1.68
A124: Insumo | B124: 00005068 | C124: SINAPI | D124: PREGO DE ACO POLIDO COM CABECA 17 X 21 (2 X 11) | E124: Material | G124: KG | H124: 0.095 | I124: 17.29 | J124: 1.64
A125: Insumo | B125: 00006193 | C125: SINAPI | D125: TABUA NAO APARELHADA *2,5 X 20* CM, EM MACARANDUBA/MASSARANDUBA, ANGELIM OU EQUIVALENTE DA REGIAO - BRUTA | E125: Material | G125: M | H125: 1.38 | I125: 16.95 | J125: 23.39
A129: 2.3.5 | B129: Código | C129: Banco | D129: Descrição | E129: Tipo | G129: Und | H129: Quant. | I129: Valor Unit | J129: Total
A130: Composição | B130: 96543 | C130: SINAPI | D130: ARMAÇÃO DE BLOCO UTILIZANDO AÇO CA-60 DE 5 MM - MONTAGEM. AF_01/2024 | E130: FUES - FUNDAÇÕES E ESTRUTURAS | G130: KG | H130: 1 | I130: 20.68 | J130: 20.68
A131: Composição Auxiliar | B131: 88238 | C131: SINAPI | D131: AJUDANTE DE ARMADOR COM ENCARGOS COMPLEMENTARES | E131: SEDI - SERVIÇOS DIVERSOS | G131: H | H131: 0.097 | I131: 20.69 | J131: 2
A132: Composição Auxiliar | B132: 88245 | C132: SINAPI | D132: ARMADOR COM ENCARGOS COMPLEMENTARES | E132: SEDI - SERVIÇOS DIVERSOS | G132: H | H132: 0.252 | I132: 25.94 | J132: 6.53
A133: Composição Auxiliar | B133: 92800 | C133: SINAPI | D133: CORTE E DOBRA DE AÇO CA-60, DIÂMETRO DE 5,0 MM. AF_06/2022 | E133: FUES - FUNDAÇÕES E ESTRUTURAS | G133: KG | H133: 1 | I133: 11.28 | J133: 11.28
A134: Insumo | B134: 00039017 | C134: SINAPI | D134: ESPACADOR / DISTANCIADOR CIRCULAR COM ENTRADA LATERAL, EM PLASTICO, PARA VERGALHAO *4,2 A 12,5* MM, COBRIMENTO 20 MM | E134: Material | G134: UN | H134: 1.143 | I134: 0.22 | J134: 0.25
A135: Insumo | B135: 00043132 | C135: SINAPI | D135: ARAME RECOZIDO 16 BWG, D = 1,65 MM (0,016 KG/M) OU 18 BWG, D = 1,25 MM (0,01 KG/M) | E135: Material | G135: KG | H135: 0.025 | I135: 25 | J135: 0.62
A139: 2.3.6 | B139: Código | C139: Banco | D139: Descrição | E139: Tipo | G139: Und | H139: Quant. | I139: Valor Unit | J139: Total
A140: Composição | B140: 96544 | C140: SINAPI | D140: ARMAÇÃO DE BLOCO UTILIZANDO AÇO CA-50 DE 6,3 MM - MONTAGEM. AF_01/2024 | E140: FUES - FUNDAÇÕES E ESTRUTURAS | G140: KG | H140: 1 | I140: 19.03 | J140: 19.03
A141: Composição Auxiliar | B141: 88238 | C141: SINAPI | D141: AJUDANTE DE ARMADOR COM ENCARGOS COMPLEMENTARES | E141: SEDI - SERVIÇOS DIVERSOS | G141: H | H141: 0.075 | I141: 20.69 | J141: 1.55
A142: Composição Auxiliar | B142: 88245 | C142: SINAPI | D142: ARMADOR COM ENCARGOS COMPLEMENTARES | E142: SEDI - SERVIÇOS DIVERSOS | G142: H | H142: 0.196 | I142: 25.94 | J142: 5.08
A143: Composição Auxiliar | B143: 92801 | C143: SINAPI | D143: CORTE E DOBRA DE AÇO CA-50, DIÂMETRO DE 6,3 MM. AF_06/2022 | E143: FUES - FUNDAÇÕES E ESTRUTURAS | G143: KG | H143: 1 | I143: 11.6 | J143: 11.6
A144: Insumo | B144: 00039017 | C144: SINAPI | D144: ESPACADOR / DISTANCIADOR CIRCULAR COM ENTRADA LATERAL, EM PLASTICO, PARA VERGALHAO *4,2 A 12,5* MM, COBRIMENTO 20 MM | E144: Material | G144: UN | H144: 0.856 | I144: 0.22 | J144: 0.18
A145: Insumo | B145: 00043132 | C145: SINAPI | D145: ARAME RECOZIDO 16 BWG, D = 1,65 MM (0,016 KG/M) OU 18 BWG, D = 1,25 MM (0,01 KG/M) | E145: Material | G145: KG | H145: 0.025 | I145: 25 | J145: 0.62
A149: 2.3.7 | B149: Código | C149: Banco | D149: Descrição | E149: Tipo | G149: Und | H149: Quant. | I149: Valor Unit | J149: Total
A150: Composição | B150: 96546 | C150: SINAPI | D150: ARMAÇÃO DE BLOCO UTILIZANDO AÇO CA-50 DE 10 MM - MONTAGEM. AF_01/2024 | E150: FUES - FUNDAÇÕES E ESTRUTURAS | G150: KG | H150: 1 | I150: 15.39 | J150: 15.39
A151: Composição Auxiliar | B151: 88238 | C151: SINAPI | D151: AJUDANTE DE ARMADOR COM ENCARGOS COMPLEMENTARES | E151: SEDI - SERVIÇOS DIVERSOS | G151: H | H151: 0.044 | I151: 20.69 | J151: 0.91
A152: Composição Auxiliar | B152: 88245 | C152: SINAPI | D152: ARMADOR COM ENCARGOS COMPLEMENTARES | E152: SEDI - SERVIÇOS DIVERSOS | G152: H | H152: 0.116 | I152: 25.94 | J152: 3
A153: Composição Auxiliar | B153: 92803 | C153: SINAPI | D153: CORTE E DOBRA DE AÇO CA-50, DIÂMETRO DE 10,0 MM. AF_06/2022 | E153: FUES - FUNDAÇÕES E ESTRUTURAS | G153: KG | H153: 1 | I153: 10.76 | J153: 10.76
A154: Insumo | B154: 00039017 | C154: SINAPI | D154: ESPACADOR / DISTANCIADOR CIRCULAR COM ENTRADA LATERAL, EM PLASTICO, PARA VERGALHAO *4,2 A 12,5* MM, COBRIMENTO 20 MM | E154: Material | G154: UN | H154: 0.48 | I154: 0.22 | J154: 0.1
A155: Insumo | B155: 00043132 | C155: SINAPI | D155: ARAME RECOZIDO 16 BWG, D = 1,65 MM (0,016 KG/M) OU 18 BWG, D = 1,25 MM (0,01 KG/M) | E155: Material | G155: KG | H155: 0.025 | I155: 25 | J155: 0.62
A159: 2.3.8 | B159: Código | C159: Banco | D159: Descrição | E159: Tipo | G159: Und | H159: Quant. | I159: Valor Unit | J159: Total
A160: Composição | B160: 9399 | C160: ORSE | D160: Concreto simples fabricado na obra, fck=25 mpa, lançado e adensado | E160: Concreto Simples | G160: m³ | H160: 1 | I160: 626.77 | J160: 626.77
A161: Composição Auxiliar | B161: 7692 | C161: ORSE | D161: Lançamento de concreto simples fabricado na obra, inclusive adensamento e acabamento em peças da superestrutura | E161: Concreto Simples | G161: m³ | H161: 1 | I161: 48.7 | J161: 48.7
A162: Composição Auxiliar | B162: 9398 | C162: ORSE | D162: Concreto simples fck= 25 MPA (b1/b2), fabricado na obra, sem lançamento e adensamento | E162: Concreto Simples | G162: m³ | H162: 1 | I162: 578.07 | J162: 578.07
A166: 2.3.9 | B166: Código | C166: Banco | D166: Descrição | E166: Tipo | G166: Und | H166: Quant. | I166: Valor Unit | J166: Total
A167: Composição | B167: 93382 | C167: SINAPI | D167: REATERRO MANUAL DE VALAS, COM COMPACTADOR DE SOLOS DE PERCUSSÃO. AF_08/2023 | E167: MOVT - MOVIMENTO DE TERRA | G167: m³ | H167: 1 | I167: 25.09 | J167: 25.09
A168: Composição Auxiliar | B168: 5901 | C168: SINAPI | D168: CAMINHÃO PIPA 10.000 L TRUCADO, PESO BRUTO TOTAL 23.000 KG, CARGA ÚTIL MÁXIMA 15.935 KG, DISTÂNCIA ENTRE EIXOS 4,8 M, POTÊNCIA 230 CV, INCLUSIVE TANQUE DE AÇO PARA TRANSPORTE DE ÁGUA - CHP DIURNO. AF_06/2014 | E168: CHOR - CUSTOS HORÁRIOS DE MÁQUINAS E EQUIPAMENTOS | G168: CHP | H168: 0.0054 | I168: 303.24 | J168: 1.63
A169: Composição Auxiliar | B169: 5903 | C169: SINAPI | D169: CAMINHÃO PIPA 10.000 L TRUCADO, PESO BRUTO TOTAL 23.000 KG, CARGA ÚTIL MÁXIMA 15.935 KG, DISTÂNCIA ENTRE EIXOS 4,8 M, POTÊNCIA 230 CV, INCLUSIVE TANQUE DE AÇO PARA TRANSPORTE DE ÁGUA - CHI DIURNO. AF_06/2014 | E169: CHOR - CUSTOS HORÁRIOS DE MÁQUINAS E EQUIPAMENTOS | G169: CHI | H169: 0.0006 | I169: 71.7 | J169: 0.04
A170: Composição Auxiliar | B170: 88316 | C170: SINAPI | D170: SERVENTE COM ENCARGOS COMPLEMENTARES | E170: SEDI - SERVIÇOS DIVERSOS | G170: H | H170: 0.7866 | I170: 20.42 | J170: 16.06
A171: Composição Auxiliar | B171: 91533 | C171: SINAPI | D171: COMPACTADOR DE SOLOS DE PERCUSSÃO (SOQUETE) COM MOTOR A GASOLINA 4 TEMPOS, POTÊNCIA 4 CV - CHP DIURNO. AF_08/2015 | E171: CHOR - CUSTOS HORÁRIOS DE MÁQUINAS E EQUIPAMENTOS | G171: CHP | H171: 0.1962 | I171: 37.53 | J171: 7.36
A175: 2.4.1 | B175: Código | C175: Banco | D175: Descrição | E175: Tipo | G175: Und | H175: Quant. | I175: Valor Unit | J175: Total
A176: Composição | B176: 103330 | C176: SINAPI | D176: ALVENARIA DE VEDAÇÃO DE BLOCOS CERÂMICOS FURADOS NA HORIZONTAL DE 11,5X19X19 CM (ESPESSURA 11,5 CM) E ARGAMASSA DE ASSENTAMENTO COM PREPARO EM BETONEIRA. AF_12/2021 | E176: PARE - PAREDES/PAINEIS | G176: m² | H176: 1 | I176: 69.54 | J176: 69.54
A177: Composição Auxiliar | B177: 87292 | C177: SINAPI | D177: ARGAMASSA TRAÇO 1:2:8 (EM VOLUME DE CIMENTO, CAL E AREIA MÉDIA ÚMIDA) PARA EMBOÇO/MASSA ÚNICA/ASSENTAMENTO DE ALVENARIA DE VEDAÇÃO, PREPARO MECÂNICO COM BETONEIRA 400 L. AF_08/2019 | E177: SEDI - SERVIÇOS DIVERSOS | G177: m³ | H177: 0.0098 | I177: 601.32 | J177: 5.89
A178: Composição Auxiliar | B178: 88309 | C178: SINAPI | D178: PEDREIRO COM ENCARGOS COMPLEMENTARES | E178: SEDI - SERVIÇOS DIVERSOS | G178: H | H178: 1.2 | I178: 26.15 | J178: 31.38
A179: Composição Auxiliar | B179: 88316 | C179: SINAPI | D179: SERVENTE COM ENCARGOS COMPLEMENTARES | E179: SEDI - SERVIÇOS DIVERSOS | G179: H | H179: 0.6 | I179: 20.42 | J179: 12.25
A180: Insumo | B180: 00034558 | C180: SINAPI | D180: TELA DE ACO SOLDADA GALVANIZADA/ZINCADA PARA ALVENARIA, FIO D = *1,20 A 1,70* MM, MALHA 15 X 15 MM, (C X L) *50 X 10,5* CM | E180: Material | G180: M | H180: 0.42 | I180: 2.84 | J180: 1.19
A181: Insumo | B181: 00037395 | C181: SINAPI | D181: PINO DE ACO COM FURO, HASTE = 27 MM (ACAO DIRETA) | E181: Material | G181: CENTO | H181: 0.01 | I181: 43.74 | J181: 0.43
A182: Insumo | B182: 00038783 | C182: SINAPI | D182: BLOCO CERAMICO / TIJOLO VAZADO PARA ALVENARIA DE VEDACAO, FUROS NA HORIZONTAL DE 11,5 X 19 X 19 CM (L X A X C) | E182: Material | G182: UN | H182: 28.31 | I182: 0.65 | J182: 18.4
A186: 2.4.2 | B186: Código | C186: Banco | D186: Descrição | E186: Tipo | G186: Und | H186: Quant. | I186: Valor Unit | J186: Total
A187: Composição | B187: 89799 | C187: SINAPI | D187: TUBO PVC, SERIE NORMAL, ESGOTO PREDIAL, DN 75 MM, FORNECIDO E INSTALADO EM PRUMADA DE ESGOTO SANITÁRIO OU VENTILAÇÃO. AF_08/2022 | E187: INHI - INSTALAÇÕES HIDROS SANITÁRIAS | G187: M | H187: 1 | I187: 18.61 | J187: 18.61
A188: Composição Auxiliar | B188: 88248 | C188: SINAPI | D188: AUXILIAR DE ENCANADOR OU BOMBEIRO HIDRÁULICO COM ENCARGOS COMPLEMENTARES | E188: SEDI - SERVIÇOS DIVERSOS | G188: H | H188: 0.1524 | I188: 20.1 | J188: 3.06
A189: Composição Auxiliar | B189: 88267 | C189: SINAPI | D189: ENCANADOR OU BOMBEIRO HIDRÁULICO COM ENCARGOS COMPLEMENTARES | E189: SEDI - SERVIÇOS DIVERSOS | G189: H | H189: 0.1524 | I189: 25.39 | J189: 3.86
A190: Insumo | B190: 00009837 | C190: SINAPI | D190: TUBO PVC SERIE NORMAL, DN 75 MM, PARA ESGOTO PREDIAL (NBR 5688) | E190: Material | G190: M | H190: 1.0549 | I190: 11.07 | J190: 11.67
A191: Insumo | B191: 00038383 | C191: SINAPI | D191: LIXA D'AGUA EM FOLHA, GRAO 100 | E191: Material | G191: UN | H191: 0.0085 | I191: 2.52 | J191: 0.02
A195: 2.4.3 | B195: Código | C195: Banco | D195: Descrição | E195: Tipo | G195: Und | H195: Quant. | I195: Valor Unit | J195: Total
A196: Composição | B196: 87894 | C196: SINAPI | D196: CHAPISCO APLICADO EM ALVENARIA (SEM PRESENÇA DE VÃOS) E ESTRUTURAS DE CONCRETO DE FACHADA, COM COLHER DE PEDREIRO. ARGAMASSA TRAÇO 1:3 COM PREPARO EM BETONEIRA 400L. AF_10/2022 | E196: REVE - REVESTIMENTO E TRATAMENTO DE SUPERFÍCIES | G196: m² | H196: 1 | I196: 6.56 | J196: 6.56
A197: Composição Auxiliar | B197: 87313 | C197: SINAPI | D197: ARGAMASSA TRAÇO 1:3 (EM VOLUME DE CIMENTO E AREIA GROSSA ÚMIDA) PARA CHAPISCO CONVENCIONAL, PREPARO MECÂNICO COM BETONEIRA 400 L. AF_08/2019 | E197: SEDI - SERVIÇOS DIVERSOS | G197: m³ | H197: 0.0037 | I197: 536.27 | J197: 1.98
A198: Composição Auxiliar | B198: 88309 | C198: SINAPI | D198: PEDREIRO COM ENCARGOS COMPLEMENTARES | E198: SEDI - SERVIÇOS DIVERSOS | G198: H | H198: 0.1394 | I198: 26.15 | J198: 3.64
A199: Composição Auxiliar | B199: 88316 | C199: SINAPI | D199: SERVENTE COM ENCARGOS COMPLEMENTARES | E199: SEDI - SERVIÇOS DIVERSOS | G199: H | H199: 0.0465 | I199: 20.42 | J199: 0.94
A203: 2.4.4 | B203: Código | C203: Banco | D203: Descrição | E203: Tipo | G203: Und | H203: Quant. | I203: Valor Unit | J203: Total
A204: Composição | B204: 87529 | C204: SINAPI | D204: MASSA ÚNICA, EM ARGAMASSA TRAÇO 1:2:8, PREPARO MECÂNICO, APLICADA MANUALMENTE EM PAREDES INTERNAS DE AMBIENTES COM ÁREA ENTRE 5M² E 10M², E = 17,5MM, COM TALISCAS. AF_03/2024 | E204: REVE - REVESTIMENTO E TRATAMENTO DE SUPERFÍCIES | G204: m² | H204: 1 | I204: 35.45 | J204: 35.45
A205: Composição Auxiliar | B205: 87292 | C205: SINAPI | D205: ARGAMASSA TRAÇO 1:2:8 (EM VOLUME DE CIMENTO, CAL E AREIA MÉDIA ÚMIDA) PARA EMBOÇO/MASSA ÚNICA/ASSENTAMENTO DE ALVENARIA DE VEDAÇÃO, PREPARO MECÂNICO COM BETONEIRA 400 L. AF_08/2019 | E205: SEDI - SERVIÇOS DIVERSOS | G205: m³ | H205: 0.0304 | I205: 601.32 | J205: 18.28
A206: Composição Auxiliar | B206: 88309 | C206: SINAPI | D206: PEDREIRO COM ENCARGOS COMPLEMENTARES | E206: SEDI - SERVIÇOS DIVERSOS | G206: H | H206: 0.4724 | I206: 26.15 | J206: 12.35
A207: Composição Auxiliar | B207: 88316 | C207: SINAPI | D207: SERVENTE COM ENCARGOS COMPLEMENTARES | E207: SEDI - SERVIÇOS DIVERSOS | G207: H | H207: 0.2362 | I207: 20.42 | J207: 4.82
A211: 2.5.1 | B211: Código | C211: Banco | D211: Descrição | E211: Tipo | G211: Und | H211: Quant. | I211: Valor Unit | J211: Total
A212: Composição | B212: 96622 | C212: SINAPI | D212: LASTRO COM MATERIAL GRANULAR, APLICADO EM PISOS OU LAJES SOBRE SOLO, ESPESSURA DE *5 CM*. AF_01/2024 | E212: FUES - FUNDAÇÕES E ESTRUTURAS | G212: m³ | H212: 1 | I212: 232.84 | J212: 232.84
A213: Composição Auxiliar | B213: 88309 | C213: SINAPI | D213: PEDREIRO COM ENCARGOS COMPLEMENTARES | E213: SEDI - SERVIÇOS DIVERSOS | G213: H | H213: 1.942 | I213: 26.15 | J213: 50.78
A214: Composição Auxiliar | B214: 88316 | C214: SINAPI | D214: SERVENTE COM ENCARGOS COMPLEMENTARES | E214: SEDI - SERVIÇOS DIVERSOS | G214: H | H214: 0.765 | I214: 20.42 | J214: 15.62
A215: Composição Auxiliar | B215: 91277 | C215: SINAPI | D215: PLACA VIBRATÓRIA REVERSÍVEL COM MOTOR 4 TEMPOS A GASOLINA, FORÇA CENTRÍFUGA DE 25 KN (2500 KGF), POTÊNCIA 5,5 CV - CHP DIURNO. AF_08/2015 | E215: CHOR - CUSTOS HORÁRIOS DE MÁQUINAS E EQUIPAMENTOS | G215: CHP | H215: 0.032 | I215: 10.64 | J215: 0.34
A216: Composição Auxiliar | B216: 91278 | C216: SINAPI | D216: PLACA VIBRATÓRIA REVERSÍVEL COM MOTOR 4 TEMPOS A GASOLINA, FORÇA CENTRÍFUGA DE 25 KN (2500 KGF), POTÊNCIA 5,5 CV - CHI DIURNO. AF_08/2015 | E216: CHOR - CUSTOS HORÁRIOS DE MÁQUINAS E EQUIPAMENTOS | G216: CHI | H216: 0.03 | I216: 0.71 | J216: 0.02
A217: Insumo | B217: 00004718 | C217: SINAPI | D217: PEDRA BRITADA N. 2 (19 A 38 MM) POSTO PEDREIRA/FORNECEDOR, SEM FRETE | E217: Material | G217: m³ | H217: 1.38 | I217: 120.35 | J217: 166.08
A221: 2.5.2 | B221: Código | C221: Banco | D221: Descrição | E221: Tipo | G221: Und | H221: Quant. | I221: Valor Unit | J221: Total
A222: Composição | B222: 94994 | C222: SINAPI | D222: EXECUÇÃO DE PASSEIO (CALÇADA) OU PISO DE CONCRETO COM CONCRETO MOLDADO IN LOCO, FEITO EM OBRA, ACABAMENTO CONVENCIONAL, ESPESSURA 8 CM, ARMADO. AF_08/2022 | E222: PISO - PISOS | G222: m² | H222: 1 | I222: 92.7 | J222: 92.7
A223: Composição Auxiliar | B223: 88262 | C223: SINAPI | D223: CARPINTEIRO DE FORMAS COM ENCARGOS COMPLEMENTARES | E223: SEDI - SERVIÇOS DIVERSOS | G223: H | H223: 0.1301 | I223: 25.8 | J223: 3.35
A224: Composição Auxiliar | B224: 88309 | C224: SINAPI | D224: PEDREIRO COM ENCARGOS COMPLEMENTARES | E224: SEDI - SERVIÇOS DIVERSOS | G224: H | H224: 0.1882 | I224: 26.15 | J224: 4.92
A225: Composição Auxiliar | B225: 88316 | C225: SINAPI | D225: SERVENTE COM ENCARGOS COMPLEMENTARES | E225: SEDI - SERVIÇOS DIVERSOS | G225: H | H225: 0.3183 | I225: 20.42 | J225: 6.49
A226: Composição Auxiliar | B226: 94964 | C226: SINAPI | D226: CONCRETO FCK = 20MPA, TRAÇO 1:2,7:3 (EM MASSA SECA DE CIMENTO/ AREIA MÉDIA/ BRITA 1) - PREPARO MECÂNICO COM BETONEIRA 400 L. AF_05/2021 | E226: FUES - FUNDAÇÕES E ESTRUTURAS | G226: m³ | H226: 0.0985 | I226: 490.73 | J226: 48.33
A227: Insumo | B227: 00002692 | C227: SINAPI | D227: DESMOLDANTE PROTETOR PARA FORMAS DE MADEIRA, DE BASE OLEOSA EMULSIONADA EM AGUA | E227: Material | G227: L | H227: 0.0017 | I227: 8.31 | J227: 0.01
A228: Insumo | B228: 00004509 | C228: SINAPI | D228: SARRAFO *2,5 X 10* CM EM PINUS, MISTA OU EQUIVALENTE DA REGIAO - BRUTA | E228: Material | G228: M | H228: 0.25 | I228: 5.58 | J228: 1.39
A229: Insumo | B229: 00004517 | C229: SINAPI | D229: SARRAFO *2,5 X 7,5* CM EM PINUS, MISTA OU EQUIVALENTE DA REGIAO - BRUTA | E229: Material | G229: M | H229: 0.2 | I229: 3.84 | J229: 0.76
A230: Insumo | B230: 00005068 | C230: SINAPI | D230: PREGO DE ACO POLIDO COM CABECA 17 X 21 (2 X 11) | E230: Material | G230: KG | H230: 0.024 | I230: 17.29 | J230: 0.41
A231: Insumo | B231: 00007156 | C231: SINAPI | D231: TELA DE ACO SOLDADA NERVURADA, CA-60, Q-196, (3,11 KG/M2), DIAMETRO DO FIO = 5,0 MM, LARGURA = 2,45 M, ESPACAMENTO DA MALHA = 10 X 10 CM | E231: Material | G231: m² | H231: 1.0816 | I231: 25 | J231: 27.04
A235: 2.5.3 | B235: Código | C235: Banco | D235: Descrição | E235: Tipo | G235: Und | H235: Quant. | I235: Valor Unit | J235: Total
A236: Composição | B236: 3641 | C236: ORSE | D236: Acabamento de superfície de piso de concreto com polimento mecânico com acabadora simples - Rev 02 | E236: Pavimentações Externas | G236: m² | H236: 1 | I236: 3.93 | J236: 3.93
A237: Composição Auxiliar | B237: 10549 | C237: ORSE | D237: Encargos Complementares - Servente | E237: Provisórios | G237: h | H237: 0.1333 | I237: 3.79 | J237: 0.5
A238: Insumo | B238: 00006111/SINAPI | C238: ORSE | D238: Servente de obras (horista) | E238: Mão de Obra | G238: h | H238: 0.1333333 | I238: 13.65 | J238: 1.81
A239: Insumo | B239: 12950 | C239: ORSE | D239: Operador de equipamento leve - SICRO | E239: Mão de Obra | G239: h | H239: 0.0888889 | I239: 14.5 | J239: 1.28
A240: Insumo | B240: 2871 | C240: ORSE | D240: Aluguel de máquina acabadora de superfície de concreto (trifásica) com 1 jogo de pás e disco de acabamento | E240: Equipamento | G240: h | H240: 0.0444444 | I240: 7.71 | J240: 0.34
A244: 2.6.1 | B244: Código | C244: Banco | D244: Descrição | E244: Tipo | G244: Und | H244: Quant. | I244: Valor Unit | J244: Total
A245: Composição | B245: 4555 | C245: ORSE | D245: Meio-fio pré moldado de concreto simples (0,12 x 0,30 x 1,00m), rejuntado comargamassa de cimento e areia no traço 1:3 | E245: Meios-Fios e Guias | G245: m | H245: 1 | I245: 44.35 | J245: 44.35
A246: Composição Auxiliar | B246: 10549 | C246: ORSE | D246: Encargos Complementares - Servente | E246: Provisórios | G246: h | H246: 0.36 | I246: 3.79 | J246: 1.36
A247: Composição Auxiliar | B247: 10550 | C247: ORSE | D247: Encargos Complementares - Pedreiro | E247: Provisórios | G247: h | H247: 0.18 | I247: 3.66 | J247: 0.65
A248: Composição Auxiliar | B248: 1903 | C248: ORSE | D248: Argamassa cimento e areia traço t-1 (1:3) - 1 saco cimento 50kg / 3 padiolas areia dim. 0.35 x 0.45 x 0.23 m - Confecção mecânica e transporte | E248: Argamassas | G248: m³ | H248: 0.001 | I248: 541.27 | J248: 0.54
A249: Insumo | B249: 00004750/SINAPI | C249: ORSE | D249: Pedreiro (horista) | E249: Mão de Obra | G249: h | H249: 0.18 | I249: 19.11 | J249: 3.43
A250: Insumo | B250: 00006111/SINAPI | C250: ORSE | D250: Servente de obras (horista) | E250: Mão de Obra | G250: h | H250: 0.36 | I250: 13.65 | J250: 4.91
A251: Insumo | B251: 1611 | C251: ORSE | D251: Meio fio pré-moldado concreto (0,12 x 0,30 x 1,00m) | E251: Material | G251: m | H251: 1 | I251: 33.46 | J251: 33.46
A255: 2.6.2 | B255: Código | C255: Banco | D255: Descrição | E255: Tipo | G255: Und | H255: Quant. | I255: Valor Unit | J255: Total
A256: Composição | B256: 94991 | C256: SINAPI | D256: EXECUÇÃO DE PASSEIO (CALÇADA) OU PISO DE CONCRETO COM CONCRETO MOLDADO IN LOCO, USINADO C20, ACABAMENTO CONVENCIONAL, NÃO ARMADO. AF_08/2022 | E256: PISO - PISOS | G256: m³ | H256: 1 | I256: 693.61 | J256: 693.61
A257: Composição Auxiliar | B257: 88262 | C257: SINAPI | D257: CARPINTEIRO DE FORMAS COM ENCARGOS COMPLEMENTARES | E257: SEDI - SERVIÇOS DIVERSOS | G257: H | H257: 1.6268 | I257: 25.8 | J257: 41.97
A258: Composição Auxiliar | B258: 88309 | C258: SINAPI | D258: PEDREIRO COM ENCARGOS COMPLEMENTARES | E258: SEDI - SERVIÇOS DIVERSOS | G258: H | H258: 0.156 | I258: 26.15 | J258: 4.07
A259: Composição Auxiliar | B259: 88316 | C259: SINAPI | D259: SERVENTE COM ENCARGOS COMPLEMENTARES | E259: SEDI - SERVIÇOS DIVERSOS | G259: H | H259: 1.7828 | I259: 20.42 | J259: 36.4
A260: Insumo | B260: 00002692 | C260: SINAPI | D260: DESMOLDANTE PROTETOR PARA FORMAS DE MADEIRA, DE BASE OLEOSA EMULSIONADA EM AGUA | E260: Material | G260: L | H260: 0.0213 | I260: 8.31 | J260: 0.17
A261: Insumo | B261: 00004509 | C261: SINAPI | D261: SARRAFO *2,5 X 10* CM EM PINUS, MISTA OU EQUIVALENTE DA REGIAO - BRUTA | E261: Material | G261: M | H261: 3.125 | I261: 5.58 | J261: 17.43
A262: Insumo | B262: 00004517 | C262: SINAPI | D262: SARRAFO *2,5 X 7,5* CM EM PINUS, MISTA OU EQUIVALENTE DA REGIAO - BRUTA | E262: Material | G262: M | H262: 2.5 | I262: 3.84 | J262: 9.6
A263: Insumo | B263: 00005068 | C263: SINAPI | D263: PREGO DE ACO POLIDO COM CABECA 17 X 21 (2 X 11) | E263: Material | G263: KG | H263: 0.2994 | I263: 17.29 | J263: 5.17
A264: Insumo | B264: 00034492 | C264: SINAPI | D264: CONCRETO USINADO BOMBEAVEL, CLASSE DE RESISTENCIA C20, COM BRITA 0 E 1, SLUMP = 100 +/- 20 MM, EXCLUI SERVICO DE BOMBEAMENTO (NBR 8953) | E264: Material | G264: m³ | H264: 1.2315 | I264: 470 | J264: 578.8
A268: 2.7.1 | B268: Código | C268: Banco | D268: Descrição | E268: Tipo | G268: Und | H268: Quant. | I268: Valor Unit | J268: Total
A269: Composição | B269: CODEVASF 234 | C269: Próprio | D269: BICICLETÁRIO EM TUBO DE AÇO GALVANIZADO DN 50mm | E269: SEDI - SERVIÇOS DIVERSOS | G269: UND | H269: 1 | I269: 591.76 | J269: 591.76
A270: Composição Auxiliar | B270: 93358 | C270: SINAPI | D270: ESCAVAÇÃO MANUAL DE VALA COM PROFUNDIDADE MENOR OU IGUAL A 1,30 M. AF_02/2021 | E270: MOVT - MOVIMENTO DE TERRA | G270: m³ | H270: 0.05 | I270: 80.78 | J270: 4.03
A271: Composição Auxiliar | B271: 94963 | C271: SINAPI | D271: CONCRETO FCK = 15MPA, TRAÇO 1:3,4:3,5 (EM MASSA SECA DE CIMENTO/ AREIA MÉDIA/ BRITA 1) - PREPARO MECÂNICO COM BETONEIRA 400 L. AF_05/2021 | E271: FUES - FUNDAÇÕES E ESTRUTURAS | G271: m³ | H271: 0.05 | I271: 449.63 | J271: 22.48
A272: Composição Auxiliar | B272: 88267 | C272: SINAPI | D272: ENCANADOR OU BOMBEIRO HIDRÁULICO COM ENCARGOS COMPLEMENTARES | E272: SEDI - SERVIÇOS DIVERSOS | G272: H | H272: 1 | I272: 25.39 | J272: 25.39
A273: Composição Auxiliar | B273: 88316 | C273: SINAPI | D273: SERVENTE COM ENCARGOS COMPLEMENTARES | E273: SEDI - SERVIÇOS DIVERSOS | G273: H | H273: 1 | I273: 20.42 | J273: 20.42
A274: Insumo | B274: 00021013 | C274: SINAPI | D274: TUBO ACO GALVANIZADO COM COSTURA, CLASSE LEVE, DN 50 MM ( 2"), E = 3,00 MM, *4,40* KG/M (NBR 5580) | E274: Material | G274: M | H274: 3.3 | I274: 67.99 | J274: 224.36
A275: Insumo | B275: 00001790 | C275: SINAPI | D275: CURVA 90 GRAUS DE FERRO GALVANIZADO, COM ROSCA BSP FEMEA, DE 2" | E275: Material | G275: UN | H275: 2 | I275: 147.54 | J275: 295.08
A279: 2.7.2 | B279: Código | C279: Banco | D279: Descrição | E279: Tipo | G279: Und | H279: Quant. | I279: Valor Unit | J279: Total
A280: Composição | B280: 9222 | C280: ORSE | D280: Guarda-corpo em tubos de aço galvanizado (altura = 0,90), com barras verticais a cada 2,00m (2"), barra horizontal intermediária (2") e barra horizontal superior (2") | E280: Esquadrias de Ferro | G280: m | H280: 1 | I280: 283.68 | J280: 283.68
A281: Composição Auxiliar | B281: 10549 | C281: ORSE | D281: Encargos Complementares - Servente | E281: Provisórios | G281: h | H281: 2.5 | I281: 3.79 | J281: 9.47
A282: Composição Auxiliar | B282: 10550 | C282: ORSE | D282: Encargos Complementares - Pedreiro | E282: Provisórios | G282: h | H282: 1 | I282: 3.66 | J282: 3.66
A283: Composição Auxiliar | B283: 10594 | C283: ORSE | D283: Encargos Complementares - Serralheiro ou Operador de Equipamento Leve | E283: Provisórios | G283: h | H283: 0.5 | I283: 3.63 | J283: 1.81
A284: Composição Auxiliar | B284: 10603 | C284: ORSE | D284: Encargos Complementares - Soldador | E284: Provisórios | G284: h | H284: 0.5 | I284: 4.34 | J284: 2.17
A285: Composição Auxiliar | B285: 96 | C285: ORSE | D285: Concreto simples usinado fck=15mpa, bombeado, lançado e adensado em superestrura | E285: Alvenarias de Pedra e Concretos para Fundações | G285: m³ | H285: 0.015 | I285: 526.8 | J285: 7.9
A286: Insumo | B286: 00004750/SINAPI | C286: ORSE | D286: Pedreiro (horista) | E286: Mão de Obra | G286: h | H286: 1 | I286: 19.11 | J286: 19.11
A287: Insumo | B287: 00006110/SINAPI | C287: ORSE | D287: Serralheiro (horista) | E287: Mão de Obra | G287: h | H287: 0.5 | I287: 19.11 | J287: 9.55
... 1008 more rows

Sheet Memória de cálculo
C1: Ministério da Integração e do Desenvolvimento Regional - MIDR
C2: Companhia de Desenvovimento dos Vales do São Francisco e do Parnaíba
C3: 4ª Gerência Regional de Infraestrutura
A4: MEMÓRIA DE CÁLCULOS DOS QUANTITATIVOS
A5: OBRA: | B5: CONSTRUÇÃO DE 01 (UM) ESPAÇO MULTIUSO
A6: DESCRIÇÃO DOS SERVIÇOS | E6: UNID | F6: C Á L C U L O | L6: DIMENSÕES | M6: COMPRIMENTO M | N6: LARGURA M | O6: ÁREA M2
A7: LIMPEZA/REGULARIZAÇÃO | E7: M2 | H7: ESPAÇO | J7: TOTAL | L7: TERRENO | M7: 36.43 | N7: 26.57 | O7: =M7*N7 -> 967.9451
A8: ÁREA CONSTRUÍDA | E8: M2 | H8: 967.95 | J8: =F8+H8 -> 967.95 | L8: QUADRA | M8: 32.13 | N8: 20.17 | O8: =M8*N8 -> 648.0621
A10: TOTAL LIMPEZA/REGULARIZAÇÃO | J10: =ROUND(SUM(J8:J9),2) -> 967.95
A12: MOVIMENTAÇÃO DE TERRA | F12: UNIDADE | G12: QUANTIDADE
A13: VOLUME ATERRO | F13: M³ | G13: =J8*0.1 -> 96.795 | L13: 106.47
A14: EMPRESTIMO DE JAZIDA | F14: M³ | G14: =G13*1.1 -> 106.4745
A15: COMPACTAÇÃO TERRENO | F15: M³ | G15: =G13 -> 96.795
A16: TRANSPORTE (DMT=5KM) | F16: M³xKM | G16: =G14*1.2*15 -> 1916.541
A18: LOCAÇÃO | E18: M | F18: COMPRIMENTO | H18: LARGURA | J18: TOTAL
A19: PERÍMETRO PARA LOCAÇÃO | E19: M | F19: 1 | H19: 134.4 | J19: =ROUND(F19*H19,2) -> 134.4
A21: ESCAVAÇÃO MANUAL | E21: M3 | F21: EXTENSÃO | G21: LARGURA | H21: PROFUND | I21: VEZES | J21: VOLUME
A22: SAPATA - MURETA | E22: M3 | F22: =(0.5+0.1) -> 0.6 | G22: =(0.5+0.1) -> 0.6 | H22: =0.05+0.5+0.3 -> 0.85 | I22: =7+12+7+12 -> 38 | J22: =ROUND(F22*G22*H22*I22,2) -> 11.63
A23: TOTAL ESCAVAÇÃO MANUAL | J23: =ROUND(SUM(J22:J22),2) -> 11.63
A25: CONCRETO MAGRO | E25: M3 | F25: EXTENSÃO | G25: LARGURA | H25: PROFUND | I25: VEZES | J25: VOLUME
A26: SAPATA - MURETA | E26: M3 | F26: 0.5 | G26: 0.5 | H26: 0.05 | I26: =7+12+7+12 -> 38 | J26: =F26*G26*H26*I26 -> 0.475
A27: TOTAL CONCRETO MAGRO | J27: =SUM(J26:J26) -> 0.475
A29: FORMAS PARA CONCRETO ARMADO | E29: M2 | F29: EXTENSÃO | G29: LARGURA | H29: VOLUME | I29: QUANT | J29: ÁREA
A30: FORMA DE MADEIRA (11M² POR M³ DE CONCRETO) | E30: M2 | H30: =J47 -> 7.25 | I30: 11 | J30: =H30*I30 -> 79.75
A31: TOTAL FORMAS PARA CONCRETO ARMADO | J31: =ROUND(SUM(J30:J30),2) -> 79.75
A33: FERRAGEM | D33: FERRO | E33: KG | F33: QUANT | G33: COMP | H33: VEZES | I33: PESO/M | J33: PESO | M33: FERRO | N33: PESO
A34: MURETA | B34: SAPATA | D34: 5 | E34: KG | F34: 10 | G34: 0.75 | H34: =7+12+7+12 -> 38 | I34: =VLOOKUP(D34,$M$34:$N$36,2,FALSE) -> 0.154 | J34: =ROUND(F34*G34*H34*I34,2) -> 43.89 | M34: 5 | N34: 0.154
B35: CINTAMENTO | D35: 6.3 | E35: KG | F35: 4 | G35: =32.43+20.47+32.43+20.47 -> 105.8 | H35: 1 | I35: =VLOOKUP(D35,$M$34:$N$36,2,FALSE) -> 0.245 | J35: =ROUND(F35*G35*H35*I35,2) -> 103.68 | M35: 6.3 | N35: 0.245
B36: CINTAMENTO | D36: 5 | E36: KG | F36: =(G35/0.2)+1 -> 530 | G36: 0.75 | H36: 1 | I36: 0.154 | J36: 61.22 | M36: 8 | N36: 0.395
B37: PILAR | D37: 6.3 | E37: KG | F37: 4 | G37: 1.4 | H37: =7+12+7+12 -> 38 | I37: 0.245 | J37: 52.14
B38: PILAR | D38: 5 | E38: KG | F38: =G37/0.2 -> 7 | G38: 0.45 | H38: =7+12+7+12 -> 38 | I38: 0.154 | J38: 18.43
A39: TOTAL FERRAGEM | D39: 5 | E39: KG | J39: =SUMIF($D$34:$D$38,D39,$J$34:$J$38) -> 123.54
D40: 6.3 | E40: KG | J40: =SUMIF($D$34:$D$38,D40,$J$34:$J$38) -> 155.82
D41: 10 | E41: KG | J41: =SUMIF($D$34:$D$38,D41,$J$34:$J$38) -> 0
A43: CONCRETO ESTRUTURAL FCK= 25MPA | E43: M3 | F43: EXTENSÃO / VOLUME | G43: LARGURA | H43: PROFUND | I43: VEZES | J43: VOLUME
A44: SAPATA - MURETA | E44: M3 | F44: =0.5 -> 0.5 | G44: 0.5 | H44: 0.15 | I44: =7+12+7+12 -> 38 | J44: =F44*G44*H44*I44 -> 1.425
A45: CINTAMENTO - MURETA | E45: M3 | F45: =G35 -> 105.8 | G45: 0.15 | H45: 0.3 | I45: 1 | J45: =F45*G45*H45*I45 -> 4.761
A46: PILAR - MURETA | E46: M3 | F46: 0.15 | G46: 0.15 | H46: 1.25 | I46: =7+12+7+12 -> 38 | J46: 1.06875
A47: TOTAL CONCRETO ESTRUTURAL FCK= 25MPA | J47: =ROUND(SUM(J44:J46),2) -> 7.25
A49: REATERRO | E49: UNI | F49: DESCRIÇÃO | J49: VOLUME
A50: VOLUME ESCAVADO | E50: M3 | F50: Total escavação manual, intem acima | J50: =J23 -> 11.63
A51: VOLUME CONCRETO FUNDAÇÃO - ATÉ O TERRENO NATURAL | E51: M3 | F51: Total volume concreto fundações | J51: =J44+J45 -> 6.186
A52: VOLUME CONCRETO MAGRO | E52: M3 | F52: total concreto magro, item abaixo | J52: =J27 -> 0.475
A53: TOTAL REATERRO | J53: =J50-J51-J52 -> 4.969
A55: ALVENARIA, 1/2 VEZ, EM TIJOLO CERÂMICO | E55: M2 | F55: EXTENSÃO | G55: ALTURA | H55: PROFUND | I55: VEZES | J55: ÁREA
A56: MURETA | E56: M2 | F56: =(32.43+20.47+32.43+20.47) -> 105.8 | G56: 0.6 | I56: 1 | J56: =F56*G56*I56 -> 63.48
A57: TOTAL ALVENARIA EM TIJOLO CERÂMICO | J57: =ROUND(SUM(J56:J56),2) -> 63.48
A59: TUBO PVC DN 75 MM PARA DRENAGEM | E59: M | F59: EXTENSÃO | I59: VEZES | J59: EXTENSÃO TOTAL
A60: TUBO PVC DN 75 MM PARA DRENAGEM | E60: M | F60: 0.15 | I60: 9 | J60: =F60*I60 -> 1.35
A62: CHAPISCO | E62: M2 | F62: EXTENSÃO | G62: LARGURA | H62: DESCONTO | I62: VEZES | J62: ÁREA
A63: MURETA | E63: M2 | F63: =$F$56 -> 105.8 | G63: 0.6 | I63: 2 | J63: =F63*G63*I63-H63 -> 126.96
A64: MURETA | E64: M2 | F64: =$F$56 -> 105.8 | G64: 0.15 | I64: 1 | J64: =F64*G64*I64 -> 15.87
A65: TOTAL CHAPISCO | J65: =ROUND(SUM(J63:J64),2) -> 142.83
A67: REBOCO | E67: M2 | F67: EXTENSÃO | G67: LARGURA | H67: PROFUND | I67: VEZES | J67: ÁREA
A68: ÁREA DE CHAPISCO | E68: M2 | J68: =J65 -> 142.83
A69: TOTAL REBOCO | J69: =ROUND(SUM(J68:J68),2) -> 142.83
A71: PISOS | F71: QUANT | G71: ÁREA | H71: PROFUND | I71: VEZES | J71: VOLUME / ÁREA
A72: LASTRO DE BRITA 2 - QUADRA MULTIEVENTOS | E72: M3 | F72: 1 | G72: =O8 -> 648.0621 | H72: 0.05 | I72: 1 | J72: =ROUND(F72*G72*H72*I72,2) -> 32.4
A73: PISO EM CONCRETO, e=8cm - QUADRA MULTIEVENTOS | E73: M2 | F73: 1 | G73: =G72 -> 648.0621 | I73: 1 | J73: =ROUND(F73*G73*I73,2) -> 648.06
A74: ACABAMENTO MECÂNICO | E74: M2 | F74: 1 | G74: =G73 -> 648.0621 | I74: 1 | J74: =ROUND(F74*G74*I74,2) -> 648.06
A76: MEIO-FIO | E76: M | J76: EXTENSÃO
A77: CONTORNO CALÇADA | E77: M | J77: 126.38
A78: TOTAL MEIO-FIO | J78: =SUM(J77:J77) -> 126.38
A80: PISOS | F80: QUANT | G80: ÁREA | H80: PROFUND | I80: VEZES | J80: VOLUME / ÁREA
A81: CALÇADA EM CONCRETO 15 MPA, E=5CM - ÁREA EXTERNA | E81: M3 | F81: 1 | G81: 311.23 | H81: 0.05 | I81: 1 | J81: =ROUND(G81*H81*I81,2) -> 15.56
A83: BICICLETÁRIO EM TUBO DE AÇO GALVANIZADO DN 50mm | E83: UN | J83: UNIDADE
A84: BICICLETÁRIO EM TUBO DE AÇO GALVANIZADO DN 50mm | E84: UN | J84: 10
A86: GUARDA CORPO EM TUBO DE AÇO | E86: UN | J86: EXTENSÃO
A87: CORRIMÃO DUPLA ALTURA | E87: M | J87: =(2.88+2+2.88)+(4.96+1.5)*2 -> 20.68
A89: PINTURA LATEX ACRILICO | E89: M2 | F89: EXTENSÃO | G89: LARGURA | H89: DESCONTO | I89: VEZES | J89: ÁREA
A90: MURETA (LATERAL) | E90: M2 | F90: =$F$56 -> 105.8 | G90: 0.6 | H90: =7.75*0.6*2 -> 9.3 | I90: 2 | J90: =F90*G90*I90-H90 -> 117.66
A91: MURETA (HORIZONTAL) | E91: M2 | F91: =$F$56 -> 105.8 | G91: 0.15 | I91: 1 | J91: =F91*G91*I91 -> 15.87
A92: DEMARCAÇÃO ACESSO CADEIRANTES | E92: M2 | F92: =(2.25+1.25)/2 -> 1.75 | G92: 1.51 | I92: 2 | J92: 5.285
A93: TOTAL PINTURA LATEX ACRILICO | J93: =SUM(J90:J92) -> 138.815
A95: PINTURA ESMALTE | E95: M2 | F95: ÁREA | H95: DESCONTO | I95: VEZES | J95: ÁREA TOTAL
A96: BICICLETÁRIO (10 UNIDADES) | E96: M2 | F96: =(50/1000)*3.14*(0.75+1+0.75) -> 0.3925 | I96: 10 | J96: =F96*I96 -> 3.925
A97: CORRIMÃO DUPLA ALTURA | E97: M2 | F97: =(40/1000)*3.14*(4.96+1.5)*2*2+(60/1000)*(2.88+2+2.88)*2 -> 4.176704 | J97: =F97 -> 4.176704
A98: TOTAL ESMALTE | J98: =SUM(J96:J97) -> 8.101704
